Workbook

Sheet MENU
A6: C1
A7: =LEFT(C7,4) -> 
A10: C5. | C10: C5. ELECTORES POR PAÍS DE ORIGEN
C25: Observaciones al
C26: correo electrónico: dejecutiva@tse.go.cr
A27: =LEFT(C27,4) -> 

Sheet 1
A1: CUADRO 1
A2: COSTA RICA: TOTAL Y VARIACIÓN DEL ELECTORADO
A3: ENTRE FEBRERO 2014 Y DICIEMBRE 2017
A4: SEGÚN PROVINCIA Y SEXO
A6: Provincia y sexo | B6: Padrón Nacional Electoral | E6: Variación
B7: Febrero 2014 | C7: Diciembre 2017 | E7: Absoluto | F7: Porcentaje
A9: Costa Rica | B9: =B13+B17+B21+B25+B29+B33+B37+B41 -> 3078321 | C9: =C13+C17+C21+C25+C29+C33+C37+C41 -> 3322329 | E9: =C9-B9 -> 244008 | F9: =E9/B9*100 -> 7.926658721
A10: Hombres | B10: 1535869 | C10: 1655105 | E10: =C10-B10 -> 119236 | F10: =E10/B10*100 -> 7.763422531
A11: Mujeres | B11: 1542452 | C11: 1667224 | E11: =C11-B11 -> 124772 | F11: =E11/B11*100 -> 8.089198238
A13: San José | B13: =SUM(B14:B15) -> 1063061 | C13: =+C14+C15 -> 1114779 | E13: =C13-B13 -> 51718 | F13: =E13/B13*100 -> 4.865007746
A14: Hombres | B14: 518312 | C14: 543289 | E14: =C14-B14 -> 24977 | F14: =E14/B14*100 -> 4.818912161
A15: Mujeres | B15: 544749 | C15: 571490 | E15: =C15-B15 -> 26741 | F15: =E15/B15*100 -> 4.908866285
A17: Alajuela | B17: =+B18+B19 -> 577493 | C17: =+C18+C19 -> 630990 | E17: =C17-B17 -> 53497 | F17: =E17/B17*100 -> 9.26366207
A18: Hombres | B18: 291277 | C18: 318070 | E18: =C18-B18 -> 26793 | F18: =E18/B18*100 -> 9.198460572
A19: Mujeres | B19: 286216 | C19: 312920 | E19: =C19-B19 -> 26704 | F19: =E19/B19*100 -> 9.330016491
A21: Cartago | B21: =+B22+B23 -> 359985 | C21: =+C22+C23 -> 387905 | E21: =C21-B21 -> 27920 | F21: =E21/B21*100 -> 7.755878717
A22: Hombres | B22: 179449 | C22: 192700 | E22: =C22-B22 -> 13251 | F22: =E22/B22*100 -> 7.38427074
A23: Mujeres | B23: 180536 | C23: 195205 | E23: =C23-B23 -> 14669 | F23: =E23/B23*100 -> 8.125249258
A25: Heredia | B25: =+B26+B27 -> 306901 | C25: =+C26+C27 -> 332859 | E25: =C25-B25 -> 25958 | F25: =E25/B25*100 -> 8.458102124
A26: Hombres | B26: 151098 | C26: 163675 | E26: =C26-B26 -> 12577 | F26: =E26/B26*100 -> 8.323736912
A27: Mujeres | B27: 155803 | C27: 169184 | E27: =C27-B27 -> 13381 | F27: =E27/B27*100 -> 8.588409723
A29: Guanacaste | B29: =+B30+B31 -> 221688 | C29: =+C30+C31 -> 240637 | E29: =C29-B29 -> 18949 | F29: =E29/B29*100 -> 8.547598427
A30: Hombres | B30: 112201 | C30: 121354 | E30: =C30-B30 -> 9153 | F30: =E30/B30*100 -> 8.157681304
A31: Mujeres | B31: 109487 | C31: 119283 | E31: =C31-B31 -> 9796 | F31: =E31/B31*100 -> 8.947180944
A33: Puntarenas | B33: =+B34+B35 -> 287254 | C33: =+C34+C35 -> 310662 | E33: =C33-B33 -> 23408 | F33: =E33/B33*100 -> 8.148885655
A34: Hombres | B34: 147881 | C34: 159033 | E34: =C34-B34 -> 11152 | F34: =E34/B34*100 -> 7.541198666
A35: Mujeres | B35: 139373 | C35: 151629 | E35: =C35-B35 -> 12256 | F35: =E35/B35*100 -> 8.793668788
A37: Limón | B37: =+B38+B39 -> 249285 | C37: =+C38+C39 -> 272633 | E37: =C37-B37 -> 23348 | F37: =E37/B37*100 -> 9.365986722
A38: Hombres | B38: 129143 | C38: 140456 | E38: =C38-B38 -> 11313 | F38: =E38/B38*100 -> 8.760056681
A39: Mujeres | B39: 120142 | C39: 132177 | E39: =C39-B39 -> 12035 | F39: =E39/B39*100 -> 10.01731285
A41: En el extranjero 1/ | B41: =+B42+B43 -> 12654 | C41: =+C42+C43 -> 31864 | E41: =C41-B41 -> 19210 | F41: =E41/B41*100 -> 151.8097044
A42: Hombres | B42: 6508 | C42: 16528 | E42: =C42-B42 -> 10020 | F42: =E42/B42*100 -> 153.9643516
A43: Mujeres | B43: 6146 | C43: 15336 | E43: =C43-B43 -> 9190 | F43: =E43/B43*100 -> 149.5281484
A46: 1/ Costarricenses inscritos(as) que pueden ejercer el voto en extranjero para designar los puestos de Presidencia y Vicepresidencias, así como en consultas populares de orden nacional, según el artículo 187 del Código Electoral.
A48: Fuente: Sección Padrón Electoral del Tribunal Supremo de Elecciones.

Sheet 2
A1: CUADRO 2
A2: COSTA RICA: ELECTORADO EN EL PADRÓN PARA LAS ELECCIONES DE
A3: FEBRERO 2014 Y EN EL PADRÓN AL 31 DE DICIEMBRE 2017
A4: POR SEXO, SEGÚN PROVINCIA Y CANTÓN
A6: Provincia y cantón | B6: Padrón Nacional Electoral
B7: Febrero 2014 | F7: Diciembre 2017
B8: Total | C8: Hombres | D8: Mujeres | F8: Total | G8: Hombres | H8: Mujeres
A9: Costa Rica | B9: =SUM(B10:B17) -> 3078321 | C9: =SUM(C10:C17) -> 1535869 | D9: =SUM(D10:D17) -> 1542452 | E9: =E18+E39+E55+E64+E75+E87+E99 -> 0 | F9: =F18+F39+F55+F64+F75+F87+F99+F106 -> 3322329 | G9: =G18+G39+G55+G64+G75+G87+G99+G106 -> 1655105 | H9: =H18+H39+H55+H64+H75+H87+H99+H106 -> 1667224
A10: San José | B10: =B18 -> 1063061 | C10: 518312 | D10: 544749 | E10: 0 | F10: 1114779 | G10: 543289 | H10: 571490
A11: Alajuela | B11: =B39 -> 577493 | C11: 291277 | D11: 286216 | E11: 0 | F11: 630990 | G11: 318070 | H11: 312920
A12: Cartago | B12: =B55 -> 359985 | C12: 179449 | D12: 180536 | E12: 0 | F12: 387905 | G12: 192700 | H12: 195205
A13: Heredia | B13: =B64 -> 306901 | C13: 151098 | D13: 155803 | E13: 0 | F13: 332859 | G13: 163675 | H13: 169184
A14: Guanacaste | B14: =B75 -> 221688 | C14: 112201 | D14: 109487 | E14: 0 | F14: 240637 | G14: 121354 | H14: 119283
A15: Puntarenas | B15: =B87 -> 287254 | C15: 147881 | D15: 139373 | E15: 0 | F15: 310662 | G15: 159033 | H15: 151629
A16: Limón | B16: =B99 -> 249285 | C16: 129143 | D16: 120142 | E16: 0 | F16: 272633 | G16: 140456 | H16: 132177
A17: En el extranjero 1/ | B17: =B106 -> 12654 | C17: =C106 -> 6508 | D17: =D106 -> 6146 | F17: =F106 -> 31864 | G17: =G106 -> 16528 | H17: =H106 -> 15336
A18: San José | B18: =SUM(C18:D18) -> 1063061 | C18: =SUM(C19:C38) -> 518312 | D18: =SUM(D19:D38) -> 544749 | F18: =SUM(F19:F38) -> 1114779 | G18: =SUM(G19:G38) -> 543289 | H18: =SUM(H19:H38) -> 571490
A19: San José | B19: =+C19+D19 -> 228847 | C19: 110114 | D19: 118733 | F19: =SUM(G19:H19) -> 234558 | G19: 113514 | H19: 121044
A20: Escazú | B20: 43354 | C20: 21195 | D20: 22159 | F20: 46971 | G20: 22957 | H20: 24014
A21: Desamparados | B21: 152242 | C21: 74550 | D21: 77692 | F21: 160243 | G21: 78427 | H21: 81816
A22: Puriscal | B22: 26459 | C22: 13322 | D22: 13137 | F22: 28424 | G22: 14235 | H22: 14189
A23: Tarrazú | B23: 11458 | C23: 5814 | D23: 5644 | F23: 12188 | G23: 6119 | H23: 6069
A24: Aserrí | B24: 40321 | C24: 20123 | D24: 20198 | F24: 42853 | G24: 21439 | H24: 21414
A25: Mora | B25: 19190 | C25: 9521 | D25: 9669 | F25: 21361 | G25: 10503 | H25: 10858
A26: Goicoechea | B26: 87701 | C26: 41925 | D26: 45776 | F26: 90058 | G26: 43176 | H26: 46882
A27: Santa Ana | B27: 31041 | C27: 15246 | D27: 15795 | F27: 35074 | G27: 17130 | H27: 17944
A28: Alajuelita | B28: 47597 | C28: 23554 | D28: 24043 | F28: 50373 | G28: 24920 | H28: 25453
A29: Vázquez de Coronado | B29: 49673 | C29: 24016 | D29: 25657 | F29: 53496 | G29: 25783 | H29: 27713
A30: Acosta | B30: 15551 | C30: 8044 | D30: 7507 | F30: 16608 | G30: 8504 | H30: 8104
A31: Tibás | B31: 55540 | C31: 26143 | D31: 29397 | F31: 55965 | G31: 26235 | H31: 29730
A32: Moravia | B32: 42357 | C32: 20301 | D32: 22056 | F32: 44209 | G32: 21149 | H32: 23060
A33: Montes de Oca | B33: 41489 | C33: 19500 | D33: 21989 | F33: 42391 | G33: 19898 | H33: 22493
A34: Turrubares | B34: 4375 | C34: 2280 | D34: 2095 | F34: 4593 | G34: 2358 | H34: 2235
A35: Dota | B35: 5193 | C35: 2610 | D35: 2583 | F35: 5566 | G35: 2786 | H35: 2780
A36: Curridabat | B36: 46270 | C36: 22273 | D36: 23997 | F36: 48859 | G36: 23440 | H36: 25419
A37: Pérez Zeledón | B37: 105670 | C37: 53322 | D37: 52348 | F37: 111779 | G37: 56046 | H37: 55733
A38: León Cortés Castro | B38: 8733 | C38: 4459 | D38: 4274 | F38: 9210 | G38: 4670 | H38: 4540
A39: Alajuela | B39: =SUM(B40:B54) -> 577493 | C39: =SUM(C40:C54) -> 291277 | D39: =SUM(D40:D54) -> 286216 | F39: 630990 | G39: =SUM(G40:G54) -> 318070 | H39: =SUM(H40:H54) -> 312920
A40: Alajuela | B40: =+C40+D40 -> 185688 | C40: 93494 | D40: 92194 | F40: 201480 | G40: 101525 | H40: 99955
A41: San Ramón | B41: 58067 | C41: 28929 | D41: 29138 | F41: 63586 | G41: 31682 | H41: 31904
A42: Grecia | B42: 55007 | C42: 27426 | D42: 27581 | F42: 59285 | G42: 29510 | H42: 29775
A43: San Mateo | B43: 4044 | C43: 2100 | D43: 1944 | F43: 4602 | G43: 2370 | H43: 2232
A44: Atenas | B44: 18923 | C44: 9486 | D44: 9437 | F44: 20429 | G44: 10228 | H44: 10201
A45: Naranjo | B45: 29894 | C45: 14815 | D45: 15079 | F45: 31782 | G45: 15775 | H45: 16007
A46: Palmares | B46: 27132 | C46: 13436 | D46: 13696 | F46: 28973 | G46: 14326 | H46: 14647
A47: Poás | B47: 19747 | C47: 9940 | D47: 9807 | F47: 21821 | G47: 10913 | H47: 10908
A48: Orotina | B48: 14116 | C48: 7035 | D48: 7081 | F48: 15594 | G48: 7829 | H48: 7765
A49: San Carlos | B49: 97702 | C49: 49938 | D49: 47764 | F49: 108240 | G49: 55144 | H49: 53096
A50: Zarcero | B50: 8490 | C50: 4259 | D50: 4231 | F50: 9056 | G50: 4469 | H50: 4587
A51: Valverde Vega | B51: 13710 | C51: 6818 | D51: 6892 | F51: 14668 | G51: 7312 | H51: 7356
A52: Upala | B52: 24597 | C52: 12821 | D52: 11776 | F52: 28352 | G52: 14765 | H52: 13587
A53: Los Chiles | B53: 10457 | C53: 5621 | D53: 4836 | F53: 12152 | G53: 6524 | H53: 5628
A54: Guatuso | B54: 9919 | C54: 5159 | D54: 4760 | F54: 10970 | G54: 5698 | H54: 5272
A55: Cartago | B55: =SUM(B56:B63) -> 359985 | C55: =SUM(C56:C63) -> 179449 | D55: =SUM(D56:D63) -> 180536 | F55: 387905 | G55: =SUM(G56:G63) -> 192700 | H55: =SUM(H56:H63) -> 195205
A56: Cartago | B56: =+C56+D56 -> 113463 | C56: 56296 | D56: 57167 | F56: 121426 | G56: 59857 | H56: 61569
A57: Paraíso | B57: 43000 | C57: 21389 | D57: 21611 | F57: 46757 | G57: 23197 | H57: 23560
A58: La Unión | B58: 64441 | C58: 31956 | D58: 32485 | F58: 70313 | G58: 34646 | H58: 35667
A59: Jiménez | B59: 11308 | C59: 5836 | D59: 5472 | F59: 12064 | G59: 6158 | H59: 5906
A60: Turrialba | B60: 54654 | C60: 27475 | D60: 27179 | F60: 57210 | G60: 28541 | H60: 28669
A61: Alvarado | B61: 9484 | C61: 4788 | D61: 4696 | F61: 10590 | G61: 5295 | H61: 5295
A62: Oreamuno | B62: 33361 | C62: 16365 | D62: 16996 | F62: 36202 | G62: 17817 | H62: 18385
A63: El Guarco | B63: 30274 | C63: 15344 | D63: 14930 | F63: 33343 | G63: 17189 | H63: 16154
A64: Heredia | B64: =SUM(B65:B74) -> 306901 | C64: =SUM(C65:C74) -> 151098 | D64: =SUM(D65:D74) -> 155803 | F64: =SUM(G64:H64) -> 332859 | G64: =SUM(G65:G74) -> 163675 | H64: =SUM(H65:H74) -> 169184
A65: Heredia | B65: =+C65+D65 -> 90600 | C65: 43399 | D65: 47201 | F65: 96661 | G65: 46371 | H65: 50290
A66: Barva | B66: 30088 | C66: 14747 | D66: 15341 | F66: 32786 | G66: 16058 | H66: 16728
A67: Santo Domingo | B67: 32559 | C67: 16038 | D67: 16521 | F67: 34421 | G67: 16941 | H67: 17480
A68: Santa Bárbara | B68: 24726 | C68: 12278 | D68: 12448 | F68: 26746 | G68: 13268 | H68: 13478
A69: San Rafael | B69: 32186 | C69: 15986 | D69: 16200 | F69: 35395 | G69: 17629 | H69: 17766
A70: San Isidro | B70: 14503 | C70: 7235 | D70: 7268 | F70: 16081 | G70: 8055 | H70: 8026
A71: Belén | B71: 17266 | C71: 8510 | D71: 8756 | F71: 18745 | G71: 9226 | H71: 9519
A72: Flores | B72: 15087 | C72: 7390 | D72: 7697 | F72: 16683 | G72: 8087 | H72: 8596
A73: San Pablo | B73: 20119 | C73: 9754 | D73: 10365 | F73: 21950 | G73: 10596 | H73: 11354
A74: Sarapiquí | B74: 29767 | C74: 15761 | D74: 14006 | F74: 33391 | G74: 17444 | H74: 15947
A75: Guanacaste | B75: =SUM(B76:B86) -> 221688 | C75: =SUM(C76:C86) -> 112201 | D75: =SUM(D76:D86) -> 109487 | F75: 240637 | G75: =SUM(G76:G86) -> 121354 | H75: =SUM(H76:H86) -> 119283
A76: Liberia | B76: =+C76+D76 -> 41245 | C76: 20723 | D76: 20522 | F76: 44938 | G76: 22492 | H76: 22446
A77: Nicoya | B77: 38300 | C77: 19245 | D77: 19055 | F77: 40987 | G77: 20606 | H77: 20381
A78: Santa Cruz | B78: 37832 | C78: 19323 | D78: 18509 | F78: 41107 | G78: 20895 | H78: 20212
A79: Bagaces | B79: 12446 | C79: 6320 | D79: 6126 | F79: 13686 | G79: 6876 | H79: 6810
A80: Carrillo | B80: 22180 | C80: 11268 | D80: 10912 | F80: 24283 | G80: 12280 | H80: 12003
A81: Cañas | B81: 18440 | C81: 9272 | D81: 9168 | F81: 19476 | G81: 9750 | H81: 9726
A82: Abangares | B82: 12801 | C82: 6492 | D82: 6309 | F82: 13610 | G82: 6933 | H82: 6677
A83: Tilarán | B83: 14132 | C83: 7079 | D83: 7053 | F83: 15049 | G83: 7514 | H83: 7535
A84: Nandayure | B84: 7979 | C84: 4134 | D84: 3845 | F84: 8464 | G84: 4341 | H84: 4123
A85: La Cruz | B85: 10846 | C85: 5518 | D85: 5328 | F85: 13023 | G85: 6593 | H85: 6430
A86: Hojancha | B86: 5487 | C86: 2827 | D86: 2660 | F86: 6014 | G86: 3074 | H86: 2940
A87: Puntarenas | B87: =SUM(B88:B98) -> 287254 | C87: =SUM(C88:C98) -> 147881 | D87: =SUM(D88:D98) -> 139373 | F87: 310662 | G87: =SUM(G88:G98) -> 159033 | H87: =SUM(H88:H98) -> 151629
A88: Puntarenas | B88: =+C88+D88 -> 82240 | C88: 42269 | D88: 39971 | F88: 86571 | G88: 44277 | H88: 42294
A89: Esparza | B89: 20599 | C89: 10214 | D89: 10385 | F89: 22598 | G89: 11197 | H89: 11401
A90: Buenos Aires | B90: 29985 | C90: 15711 | D90: 14274 | F90: 31975 | G90: 16618 | H90: 15357
A91: Montes de Oro | B91: 9616 | C91: 4807 | D91: 4809 | F91: 10241 | G91: 5115 | H91: 5126
A92: Osa | B92: 20090 | C92: 10649 | D92: 9441 | F92: 22210 | G92: 11678 | H92: 10532
A93: Quepos | B93: 18025 | C93: 9561 | D93: 8464 | F93: 19595 | G93: 10367 | H93: 9228
A94: Golfito | B94: 27210 | C94: 14223 | D94: 12987 | F94: 29563 | G94: 15292 | H94: 14271
A95: Coto Brus | B95: 27667 | C95: 13980 | D95: 13687 | F95: 29923 | G95: 15075 | H95: 14848
A96: Parrita | B96: 10844 | C96: 5604 | D96: 5240 | F96: 12052 | G96: 6225 | H96: 5827
A97: Corredores | B97: 31122 | C97: 15640 | D97: 15482 | F97: 34163 | G97: 17044 | H97: 17119
A98: Garabito | B98: 9856 | C98: 5223 | D98: 4633 | F98: 11771 | G98: 6145 | H98: 5626
A99: Limón | B99: =SUM(B100:B105) -> 249285 | C99: =SUM(C100:C105) -> 129143 | D99: =SUM(D100:D105) -> 120142 | F99: 272633 | G99: =SUM(G100:G105) -> 140456 | H99: =SUM(H100:H105) -> 132177
A100: Limón | B100: =+C100+D100 -> 64961 | C100: 32762 | D100: 32199 | F100: 68866 | G100: 34537 | H100: 34329
A101: Pococí | B101: 83344 | C101: 43586 | D101: 39758 | F101: 92004 | G101: 47930 | H101: 44074
A102: Siquirres | B102: 37389 | C102: 19658 | D102: 17731 | F102: 40171 | G102: 20896 | H102: 19275
A103: Talamanca | B103: 17572 | C103: 9254 | D103: 8318 | F103: 20870 | G103: 10891 | H103: 9979
A104: Matina | B104: 19837 | C104: 10370 | D104: 9467 | F104: 21862 | G104: 11387 | H104: 10475
A105: Guácimo | B105: 26182 | C105: 13513 | D105: 12669 | F105: 28860 | G105: 14815 | H105: 14045
A106: En el extranjero 1/ | B106: =SUM(C106:D106) -> 12654 | C106: 6508 | D106: 6146 | F106: =SUM(G106:H106) -> 31864 | G106: 16528 | H106: 15336
A109: 1/ Costarricenses inscritos(as) que pueden ejercer el voto en extranjero para designar los puestos de Presidencia y Vicepresidencias, así como en consultas populares de orden nacional, según el artículo 187 del Código Electoral.
A110: Fuente: Sección Padrón Electoral del Tribunal Supremo de Elecciones.

Sheet 3
A1: CUADRO 3
A2: COSTA RICA: ELECTORADO POR PROVINCIA, SEGÚN SEXO Y
A3: GRUPO DE EDAD, AL 31 DE DICIEMBRE 2017
A5: Sexo y grupo de edad | B5: Total | C5: San José | D5: Alajuela | E5: Cartago | F5: Heredia | G5: Guanacaste | H5: Puntarenas | I5: Limón | J5: En el extranjero 1/
A7: Costa Rica | B7: =B25+B43 -> 3322329 | C7: =C25+C43 -> 1114779 | D7: 630990 | E7: 387905 | F7: 332859 | G7: 240637 | H7: 310662 | I7: 272633 | J7: 31864
A8: 18 - 19 | B8: =B26+B44 -> 205366 | C8: 63583 | D8: 40845 | E8: 23841 | F8: 19740 | G8: 15631 | H8: 20695 | I8: 20022 | J8: 1009
A9: 20 - 24 | B9: =B27+B45 -> 311459 | C9: 98021 | D9: 60742 | E9: 36245 | F9: 29537 | G9: 23474 | H9: 31083 | I9: 30050 | J9: 2307
A10: 25 - 29 | B10: 396691 | C10: 129613 | D10: 77499 | E10: 47303 | F10: 38376 | G10: 28698 | H10: 37621 | I10: 34763 | J10: 2818
A11: 30 - 34 | B11: 386044 | C11: 126623 | D11: 74312 | E11: 45383 | F11: 38517 | G11: 27587 | H11: 36624 | I11: 32947 | J11: 4051
A12: 35 - 39 | B12: 339146 | C12: 114027 | D12: 62453 | E12: 39470 | F12: 35790 | G12: 24396 | H12: 31556 | I12: 26912 | J12: 4542
A13: 40 - 44 | B13: 284275 | C13: 93200 | D13: 51959 | E13: 34105 | F13: 29897 | G13: 20597 | H13: 26988 | I13: 23559 | J13: 3970
A14: 45 - 49 | B14: 270844 | C14: 88389 | D14: 50782 | E14: 32801 | F14: 27354 | G14: 19584 | H14: 25787 | I14: 22731 | J14: 3416
A15: 50 - 54 | B15: 275810 | C15: 92557 | D15: 52970 | E15: 32924 | F15: 27801 | G15: 19543 | H15: 25391 | I15: 21495 | J15: 3129
A16: 55 - 59 | B16: 245970 | C16: 85877 | D16: 46729 | E16: 28522 | F16: 25070 | G16: 17124 | H16: 21826 | I16: 18387 | J16: 2435
A17: 60 - 64 | B17: 196503 | C17: 70507 | D17: 35956 | E17: 22130 | F17: 20240 | G17: 13820 | H17: 17425 | I17: 14730 | J17: 1695
A18: 65 - 69 | B18: 143510 | C18: 52748 | D18: 26155 | E18: 15715 | F18: 14708 | G18: 10094 | H18: 12623 | I18: 10317 | J18: 1150
A19: 70 - 74 | B19: 102295 | C19: 37908 | D19: 19333 | E19: 11365 | F19: 10144 | G19: 7311 | H19: 8831 | I19: 6788 | J19: 615
A20: 75 - 79 | B20: 71175 | C20: 25877 | D20: 13828 | E20: 7993 | F20: 6790 | G20: 5436 | H20: 6365 | I20: 4554 | J20: 332
A21: 80 - 84 | B21: 47599 | C21: 17936 | D21: 8943 | E21: 5330 | F21: 4558 | G21: 3592 | H21: 4151 | I21: 2888 | J21: 201
A22: 85 - 89 | B22: 28649 | C22: 11226 | D22: 5284 | E22: 3075 | F22: 2739 | G22: 2254 | H22: 2375 | I22: 1569 | J22: 127
A23: 90 y más | B23: 16993 | C23: 6687 | D23: 3200 | E23: 1703 | F23: 1598 | G23: 1496 | H23: 1321 | I23: 921 | J23: 67
A25: Hombres | B25: =SUM(C25:J25) -> 1655105 | C25: =SUM(C26:C41) -> 543289 | D25: =SUM(D26:D41) -> 318070 | E25: 192700 | F25: 163675 | G25: 121354 | H25: 159033 | I25: 140456 | J25: =SUM(J26:J41) -> 16528
A26: 18 - 19 | B26: =SUM(C26:J26) -> 104460 | C26: 32250 | D26: 20876 | E26: 12104 | F26: 10070 | G26: 7899 | H26: 10557 | I26: 10192 | J26: 512
A27: 20 - 24 | B27: =SUM(C27:J27) -> 159087 | C27: 49778 | D27: 31352 | E27: 18519 | F27: 15047 | G27: 12027 | H27: 15865 | I27: 15376 | J27: 1123
A28: 25 - 29 | B28: 202185 | C28: 65686 | D28: 40108 | E28: 24162 | F28: 19578 | G28: 14499 | H28: 19006 | I28: 17733 | J28: 1413
A29: 30 - 34 | B29: 195677 | C29: 63684 | D29: 38238 | E29: 22995 | F29: 19444 | G29: 13983 | H29: 18501 | I29: 16580 | J29: 2252
A30: 35 - 39 | B30: 170884 | C30: 57336 | D30: 31886 | E30: 19720 | F30: 17868 | G30: 12263 | H30: 15842 | I30: 13425 | J30: 2544
A31: 40 - 44 | B31: 142862 | C31: 46616 | D31: 26088 | E31: 16960 | F31: 14867 | G31: 10357 | H31: 13758 | I31: 12016 | J31: 2200
A32: 45 - 49 | B32: 135157 | C32: 43369 | D32: 25384 | E32: 16059 | F32: 13520 | G32: 9923 | H32: 13266 | I32: 11767 | J32: 1869
A33: 50 - 54 | B33: 136973 | C33: 45108 | D33: 26304 | E33: 16314 | F33: 13468 | G33: 9853 | H33: 13081 | I33: 11236 | J33: 1609
A34: 55 - 59 | B34: 121188 | C34: 40775 | D34: 23301 | E34: 14020 | F34: 12075 | G34: 8718 | H34: 11373 | I34: 9693 | J34: 1233
A35: 60 - 64 | B35: 95855 | C35: 32917 | D35: 17907 | E35: 10737 | F35: 9568 | G35: 7000 | H35: 9051 | I35: 7912 | J35: 763
A36: 65 - 69 | B36: 69012 | C36: 23880 | D36: 12923 | E36: 7465 | F36: 6838 | G36: 5090 | H36: 6654 | I36: 5640 | J36: 522
A37: 70 - 74 | B37: 48785 | C37: 17032 | D37: 9398 | E37: 5418 | F37: 4703 | G37: 3575 | H37: 4710 | I37: 3690 | J37: 259
A38: 75 - 79 | B38: 33166 | C38: 11148 | D38: 6568 | E38: 3796 | F38: 3039 | G38: 2686 | H38: 3357 | I38: 2454 | J38: 118
A39: 80 - 84 | B39: 21107 | C39: 7202 | D39: 4071 | E39: 2392 | F39: 1940 | G39: 1761 | H39: 2147 | I39: 1536 | J39: 58
A40: 85 - 89 | B40: 12077 | C40: 4278 | D40: 2327 | E40: 1362 | F40: 1068 | G40: 1055 | H40: 1177 | I40: 776 | J40: 34
A41: 90 y más | B41: 6630 | C41: 2230 | D41: 1339 | E41: 677 | F41: 582 | G41: 665 | H41: 688 | I41: 430 | J41: 19
A43: Mujeres | B43: =SUM(C43:J43) -> 1667224 | C43: =SUM(C44:C59) -> 571490 | D43: =SUM(D44:D59) -> 312920 | E43: 195205 | F43: 169184 | G43: 119283 | H43: 151629 | I43: 132177 | J43: =SUM(J44:J59) -> 15336
A44: 18 - 19 | B44: =SUM(C44:J44) -> 100906 | C44: 31333 | D44: 19969 | E44: 11737 | F44: 9670 | G44: 7732 | H44: 10138 | I44: 9830 | J44: 497
A45: 20 - 24 | B45: =SUM(C45:J45) -> 152372 | C45: 48243 | D45: 29390 | E45: 17726 | F45: 14490 | G45: 11447 | H45: 15218 | I45: 14674 | J45: 1184
A46: 25 - 29 | B46: 194506 | C46: 63927 | D46: 37391 | E46: 23141 | F46: 18798 | G46: 14199 | H46: 18615 | I46: 17030 | J46: 1405
A47: 30 - 34 | B47: 190367 | C47: 62939 | D47: 36074 | E47: 22388 | F47: 19073 | G47: 13604 | H47: 18123 | I47: 16367 | J47: 1799
A48: 35 - 39 | B48: 168262 | C48: 56691 | D48: 30567 | E48: 19750 | F48: 17922 | G48: 12133 | H48: 15714 | I48: 13487 | J48: 1998
A49: 40 - 44 | B49: 141413 | C49: 46584 | D49: 25871 | E49: 17145 | F49: 15030 | G49: 10240 | H49: 13230 | I49: 11543 | J49: 1770
A50: 45 - 49 | B50: 135687 | C50: 45020 | D50: 25398 | E50: 16742 | F50: 13834 | G50: 9661 | H50: 12521 | I50: 10964 | J50: 1547
A51: 50 - 54 | B51: 138837 | C51: 47449 | D51: 26666 | E51: 16610 | F51: 14333 | G51: 9690 | H51: 12310 | I51: 10259 | J51: 1520
A52: 55 - 59 | B52: =SUM(C52:J52) -> 124782 | C52: 45102 | D52: 23428 | E52: 14502 | F52: 12995 | G52: 8406 | H52: 10453 | I52: 8694 | J52: 1202
A53: 60 - 64 | B53: 100648 | C53: 37590 | D53: 18049 | E53: 11393 | F53: 10672 | G53: 6820 | H53: 8374 | I53: 6818 | J53: 932
A54: 65 - 69 | B54: 74498 | C54: 28868 | D54: 13232 | E54: 8250 | F54: 7870 | G54: 5004 | H54: 5969 | I54: 4677 | J54: 628
A55: 70 - 74 | B55: 53510 | C55: 20876 | D55: 9935 | E55: 5947 | F55: 5441 | G55: 3736 | H55: 4121 | I55: 3098 | J55: 356
A56: 75 - 79 | B56: 38009 | C56: 14729 | D56: 7260 | E56: 4197 | F56: 3751 | G56: 2750 | H56: 3008 | I56: 2100 | J56: 214
A57: 80 - 84 | B57: 26492 | C57: 10734 | D57: 4872 | E57: 2938 | F57: 2618 | G57: 1831 | H57: 2004 | I57: 1352 | J57: 143
A58: 85 - 89 | B58: 16572 | C58: 6948 | D58: 2957 | E58: 1713 | F58: 1671 | G58: 1199 | H58: 1198 | I58: 793 | J58: 93
A59: 90 y más | B59: 10363 | C59: 4457 | D59: 1861 | E59: 1026 | F59: 1016 | G59: 831 | H59: 633 | I59: 491 | J59: 48
A62: 1/ Costarricenses inscritos(as) que pueden ejercer el voto en extranjero para designar los puestos de Presidencia y Vicepresidencias, así como en consultas populares de orden nacional, según el artículo 187 del Código Electoral.
A63: Fuente: Sección Padrón Electoral del Tribunal Supremo de Elecciones.

Sheet G1
H2: GRÁFICO 1
A3: POR MES, SEGÚN PROVINCIA Y SEXO, AL 31 DE MARZO DE 2017 | H3: COSTA RICA: PORCENTAJE DEL ELECTORADO, POR SEXO Y GRUPO DE EDAD
H4: AL 31 DE DICIEMBRE 2017
A6: GRUPOS DE EDAD | B6: ELECTORES | F6: PORCENTAJE
B7: Total | C7: Hombres | D7: Mujeres | E7: Sin lugar | F7: Hombres | G7: Mujeres
B9: 3322329 | C9: 1655105 | D9: 1667224
A11: Menos de 20 | B11: 205366 | C11: 104460 | D11: 100906 | F11: -6.311382057 | G11: 6.096652478
A12: 20 a 24 | B12: 311459 | C12: 159087 | D12: 152372 | F12: -9.611897735 | G12: 9.206183294
A13: 25 a 29 | B13: 396691 | C13: 202185 | D13: 194506 | F13: -12.21584129 | G13: 11.75188281
A14: 30 a 34 | B14: 386044 | C14: 195677 | D14: 190367 | F14: -11.82263361 | G14: 11.50180804
A15: 35 a 39 | B15: 339146 | C15: 170884 | D15: 168262 | F15: -10.32466218 | G15: 10.16624323
A16: 40 a 44 | B16: 284275 | C16: 142862 | D16: 141413 | F16: -8.631597391 | G16: 8.544050075
A17: 45 a 49 | B17: 270844 | C17: 135157 | D17: 135687 | F17: -8.166068014 | G17: 8.198090151
A18: 50 a 54 | B18: 275810 | C18: 136973 | D18: 138837 | F18: -8.275789149 | G18: 8.388410403
A19: 55 a 59 | B19: 245970 | C19: 121188 | D19: 124782 | F19: -7.322073222 | G19: 7.539219566
A20: 60 a 64 | B20: 196503 | C20: 95855 | D20: 100648 | F20: -5.791475465 | G20: 6.081064343
A21: 65 a 69 | B21: 143510 | C21: 69012 | D21: 74498 | F21: -4.169644826 | G21: 4.50110416
A22: 70 a 74 | B22: 102295 | C22: 48785 | D22: 53510 | F22: -2.947547134 | G22: 3.233027512
A23: 75 a 79 | B23: 71175 | C23: 33166 | D23: 38009 | F23: -2.003860782 | G23: 2.296470617
A24: 80 a 84 | B24: 47599 | C24: 21107 | D24: 26492 | F24: -1.275266524 | G24: 1.600623525
A25: 85 a 89 | B25: 28649 | C25: 12077 | D25: 16572 | F25: -0.7296818027 | G25: 1.001265781
A26: 90 y más | B26: 16993 | C26: 6630 | D26: 10363 | F26: -0.4005788152 | G26: 0.6261234182
H30: Fuente: Cuadro 3.

Sheet 4
A1: CUADRO 4
A2: COSTA RICA: ELECTORADO EN EL PADRÓN INSCRITO EN EL EXTRANJERO1/
A3: POR SEXO, SEGÚN CONTINENTE Y PAÍS
A4: AL 31 DE DICIEMBRE 2017
A6: Continente y país | B6: Total | D6: Hombres | F6: Mujeres
B7: Absoluto | C7: % | D7: Absoluto | E7: % | F7: Absoluto | G7: %
A9: Total | B9: =B11+B36+B49+B58 -> 31864 | C9: =B9/B$9*100 -> 100 | D9: =D11+D36+D49+D58 -> 16528 | E9: =D9/D$9*100 -> 100 | F9: =F11+F36+F49+F58 -> 15336 | G9: =F9/F$9*100 -> 100
A11: América | B11: =D11+F11 -> 28307 | C11: =B11/B$9*100 -> 88.83693196 | D11: =SUM(D12:D34) -> 14876 | E11: =D11/D$9*100 -> 90.00484027 | F11: =SUM(F12:F34) -> 13431 | G11: =F11/F$9*100 -> 87.57824726
A12: Estados Unidos | B12: 22384 | C12: 70.24855636 | D12: 11994 | E12: 72.56776379 | F12: 10390 | G12: 67.74908712
A13: Canadá | B13: 996 | C13: 3.125784584 | D13: 560 | E13: 3.388189739 | F13: 436 | G13: 2.842983829
A14: México | B14: 883 | C14: 2.771152398 | D14: 391 | E14: 2.365682478 | F14: 492 | G14: 3.208137715
A15: Panamá | B15: 733 | C15: 2.300401707 | D15: 333 | E15: 2.014762827 | F15: 400 | G15: 2.608242045
A16: Nicaragua | B16: 507 | C16: 1.591137334 | D16: 265 | E16: 1.603339787 | F16: 242 | G16: 1.577986437
A17: Guatemala | B17: 434 | C17: 1.362038664 | D17: 180 | E17: 1.089060987 | F17: 254 | G17: 1.656233698
A18: Venezuela | B18: 390 | C18: 1.223951795 | D18: 179 | E18: 1.083010649 | F18: 211 | G18: 1.375847679
A19: Colombia | B19: 352 | C19: 1.104694954 | D19: 164 | E19: 0.9922555663 | F19: 188 | G19: 1.225873761
A20: El Salvador | B20: 286 | C20: 0.8975646498 | D20: 123 | E20: 0.7441916747 | F20: 163 | G20: 1.062858633
A21: Chile | B21: 232 | C21: 0.7280944012 | D21: 116 | E21: 0.701839303 | F21: 116 | G21: 0.756390193
A22: Honduras | B22: 228 | C22: 0.7155410495 | D22: 123 | E22: 0.7441916747 | F22: 105 | G22: 0.6846635368
A23: Argentina | B23: 225 | C23: 0.7061260357 | D23: 109 | E23: 0.6594869313 | F23: 116 | G23: 0.756390193
A24: Perú | B24: 159 | C24: 0.4989957319 | D24: 82 | E24: 0.4961277832 | F24: 77 | G24: 0.5020865936
A25: Ecuador | B25: 142 | C25: 0.4456439869 | D25: 68 | E25: 0.4114230397 | F25: 74 | G25: 0.4825247783
A26: República Dominicana | B26: 116 | C26: 0.3640472006 | D26: 64 | E26: 0.3872216844 | F26: 52 | G26: 0.3390714658
A27: Brasil | B27: 91 | C27: 0.2855887522 | D27: 52 | E27: 0.3146176186 | F27: 39 | G27: 0.2543035994
A28: Cuba | B28: 43 | C28: 0.1349485313 | D28: 18 | E28: 0.1089060987 | F28: 25 | G28: 0.1630151278
A29: Bolivia | B29: 39 | C29: 0.1223951795 | D29: 19 | E29: 0.1149564376 | F29: 20 | G29: 0.1304121022
A30: Paraguay | B30: 29 | C30: 0.09101180015 | D30: 20 | E30: 0.1210067764 | F30: 9 | G30: 0.05868544601
A31: Uruguay | B31: 20 | C31: 0.06276675872 | D31: 13 | E31: 0.07865440465 | F31: 7 | G31: 0.04564423579
A32: Belice | B32: 9 | C32: 0.02824504143 | D32: 2 | E32: 0.01210067764 | F32: 7 | G32: 0.04564423579
A33: Trinidad y Tobago | B33: 6 | C33: 0.01883002762 | D33: 1 | E33: 0.006050338819 | F33: 5 | G33: 0.03260302556
A34: Jamaica | B34: 3 | C34: 0.009415013809 | D34: 0 | E34: 0 | F34: 3 | G34: 0.01956181534
A36: Europa | B36: =D36+F36 -> 3000 | C36: =B36/B$9*100 -> 9.415013809 | D36: =SUM(D37:D47) -> 1381 | E36: =D36/D$9*100 -> 8.355517909 | F36: =SUM(F37:F47) -> 1619 | G36: =F36/F$9*100 -> 10.55685968
A37: España | B37: =D37+F37 -> 789 | C37: =B37/B$9*100 -> 2.476148632 | D37: 378 | E37: =D37/D$9*100 -> 2.287028074 | F37: 411 | G37: =F37/F$9*100 -> 2.679968701
A38: Alemania | B38: 481 | C38: 1.509540547 | D38: 279 | E38: 1.68804453 | F38: 202 | G38: 1.317162233
A39: Francia | B39: 371 | C39: 1.164323374 | D39: 148 | E39: 0.8954501452 | F39: 223 | G39: 1.45409494
A40: Suiza | B40: 298 | C40: 0.935224705 | D40: 122 | E40: 0.7381413359 | F40: 176 | G40: 1.1476265
A41: Reino Unido | B41: 295 | C41: 0.9258096912 | D41: 128 | E41: 0.7744433688 | F41: 167 | G41: 1.088941054
A42: Italia | B42: 251 | C42: 0.787722822 | D42: 86 | E42: 0.5203291384 | F42: 165 | G42: 1.075899844
A43: Holanda | B43: 225 | C43: 0.7061260357 | D43: 96 | E43: 0.5808325266 | F43: 129 | G43: 0.8411580595
A44: Bélgica | B44: 147 | C44: 0.4613356766 | D44: 70 | E44: 0.4235237173 | F44: 77 | G44: 0.5020865936
A45: Austria | B45: 102 | C45: 0.3201104695 | D45: 48 | E45: 0.2904162633 | F45: 54 | G45: 0.3521126761
A46: Rusia | B46: 39 | C46: 0.1223951795 | D46: 25 | E46: 0.1512584705 | F46: 14 | G46: 0.09128847157
A47: Turquía | B47: =D47+F47 -> 2 | C47: =B47/B$9*100 -> 0.006276675872 | D47: 1 | E47: =D47/D$9*100 -> 0.006050338819 | F47: 1 | G47: =F47/F$9*100 -> 0.006520605112
A49: Asia | B49: =D49+F49 -> 434 | C49: =B49/B$9*100 -> 1.362038664 | D49: =SUM(D50:D56) -> 208 | E49: =D49/D$9*100 -> 1.258470474 | F49: =SUM(F50:F56) -> 226 | G49: =F49/F$9*100 -> 1.473656755
A50: China | B50: 142 | C50: 0.4456439869 | D50: 73 | E50: 0.4416747338 | F50: 69 | G50: 0.4499217527
A51: Israel | B51: 90 | C51: 0.2824504143 | D51: 39 | E51: 0.2359632139 | F51: 51 | G51: 0.3325508607
A52: Japón | B52: 79 | C52: 0.247928697 | D52: 34 | E52: 0.2057115198 | F52: 45 | G52: 0.29342723
A53: Singapur | B53: 42 | C53: 0.1318101933 | D53: 21 | E53: 0.1270571152 | F53: 21 | G53: 0.1369327074
A54: Corea | B54: 33 | C54: 0.1035651519 | D54: 15 | E54: 0.09075508228 | F54: 18 | G54: 0.117370892
A55: Qatar | B55: 39 | C55: 0.1223951795 | D55: 20 | E55: 0.1210067764 | F55: 19 | G55: 0.1238914971
A56: India | B56: 9 | C56: 0.02824504143 | D56: 6 | E56: 0.03630203291 | F56: 3 | G56: 0.01956181534
A58: Oceanía | B58: =D58+F58 -> 123 | C58: =B58/B$9*100 -> 0.3860155662 | D58: =SUM(D59) -> 63 | E58: =D58/D$9*100 -> 0.3811713456 | F58: =SUM(F59) -> 60 | G58: =F58/F$9*100 -> 0.3912363067
A59: Australia | B59: =D59+F59 -> 123 | C59: =B59/B$9*100 -> 0.3860155662 | D59: 63 | E59: =D59/D$9*100 -> 0.3811713456 | F59: 60 | G59: =F59/F$9*100 -> 0.3912363067
A62: 1/ Costarricenses inscritos(as) que pueden ejercer el voto en extranjero para designar los puestos de Presidencia y Vicepresidencias, así como en consultas populares de orden nacional, según el artículo 187 del Código Electoral.
A63: Fuente: Sección Padrón Electoral del Tribunal Supremo de Elecciones.

Sheet 5
A1: CUADRO 5
A2: COSTA RICA: ELECTORADO NATURALIZADO, POR PAÍS DE ORIGEN
A3: SEGÚN SEXO Y GRUPO DE EDAD, AL 31 DE DICIEMBRE 2017
A5: SEXO Y GRUPO DE EDAD | B5: País de origen
B6: Total | C6: Nicaragua | D6: Colombia | E6: El Salvador | F6: Cuba | G6: China | H6: Perú | I6: Panamá | J6: Resto de países
A8: Costa Rica | B8: =SUM(B9:B24) -> 61668 | C8: =SUM(C9:C24) -> 31166 | D8: 8089 | E8: 3938 | F8: 2421 | G8: 2134 | H8: 1879 | I8: 1612 | J8: =SUM(J9:J24) -> 10429
A9: 18 - 19 | B9: =SUM(C9:J9) -> 620 | C9: =C27+C45 -> 226 | D9: =D27+D45 -> 247 | E9: 15 | F9: 21 | G9: 9 | H9: 15 | I9: 10 | J9: 77
A10: 20 - 24 | B10: =SUM(C10:J10) -> 1180 | C10: =C28+C46 -> 465 | D10: 404 | E10: 12 | F10: 58 | G10: 46 | H10: 27 | I10: 9 | J10: 159
A11: 25 - 29 | B11: 2500 | C11: 1355 | D11: 470 | E11: 52 | F11: 115 | G11: 105 | H11: 57 | I11: 18 | J11: 328
A12: 30 - 34 | B12: 4350 | C12: 2595 | D12: 647 | E12: 92 | F12: 121 | G12: 158 | H12: 128 | I12: 58 | J12: 551
A13: 35 - 39 | B13: 6872 | C13: 3755 | D13: 1196 | E13: 318 | F13: 158 | G13: 244 | H13: 198 | I13: 68 | J13: 935
A14: 40 - 44 | B14: 7810 | C14: 3997 | D14: 1234 | E14: 471 | F14: 279 | G14: 256 | H14: 269 | I14: 130 | J14: 1174
A15: 45 - 49 | B15: 7969 | C15: 3992 | D15: 1114 | E15: 528 | F15: 339 | G15: 285 | H15: 232 | I15: 212 | J15: 1267
A16: 50 - 54 | B16: 7090 | C16: 3363 | D16: 1001 | E16: 471 | F16: 347 | G16: 215 | H16: 231 | I16: 235 | J16: 1227
A17: 55 - 59 | B17: 5701 | C17: 2564 | D17: 708 | E17: 484 | F17: 272 | G17: 168 | H17: 239 | I17: 204 | J17: 1062
A18: 60 - 64 | B18: 4936 | C18: 2224 | D18: 444 | E18: 525 | F18: 215 | G18: 169 | H18: 188 | I18: 176 | J18: 995
A19: 65 - 69 | B19: 3895 | C19: 1737 | D19: 293 | E19: 383 | F19: 151 | G19: 160 | H19: 138 | I19: 153 | J19: 880
A20: 70 - 74 | B20: 3059 | C20: 1494 | D20: 163 | E20: 271 | F20: 130 | G20: 117 | H20: 76 | I20: 139 | J20: 669
A21: 75 - 79 | B21: 2174 | C21: 1175 | D21: 85 | E21: 145 | F21: 92 | G21: 79 | H21: 39 | I21: 73 | J21: 486
A22: 80 - 84 | B22: 1636 | C22: 975 | D22: 54 | E22: 99 | F22: 55 | G22: 53 | H22: 28 | I22: 56 | J22: 316
A23: 85 - 89 | B23: =SUM(C23:J23) -> 1106 | C23: 704 | D23: 19 | E23: 48 | F23: 38 | G23: 51 | H23: 9 | I23: 48 | J23: 189
A24: 90 y más | B24: =SUM(C24:J24) -> 770 | C24: 545 | D24: 10 | E24: 24 | F24: 30 | G24: 19 | H24: 5 | I24: 23 | J24: 114
A26: Hombres | B26: =SUM(B27:B42) -> 27437 | C26: =SUM(C27:C42) -> 12599 | D26: =SUM(D27:D42) -> 3800 | E26: 1694 | F26: 1349 | G26: 1161 | H26: 999 | I26: 694 | J26: 5141
A27: 18 - 19 | B27: =SUM(C27:J27) -> 315 | C27: 99 | D27: 140 | E27: 10 | F27: 14 | G27: 6 | H27: 7 | I27: 4 | J27: 35
A28: 20 - 24 | B28: =SUM(C28:J28) -> 580 | C28: 199 | D28: 212 | E28: 5 | F28: 39 | G28: 25 | H28: 13 | I28: 0 | J28: 87
A29: 25 - 29 | B29: 1029 | C29: 493 | D29: 220 | E29: 18 | F29: 63 | G29: 68 | H29: 22 | I29: 5 | J29: 140
A30: 30 - 34 | B30: 1694 | C30: 891 | D30: 299 | E30: 40 | F30: 50 | G30: 94 | H30: 61 | I30: 15 | J30: 244
A31: 35 - 39 | B31: 2829 | C31: 1409 | D31: 540 | E31: 148 | F31: 75 | G31: 152 | H31: 97 | I31: 29 | J31: 379
A32: 40 - 44 | B32: 3313 | C32: 1577 | D32: 528 | E32: 206 | F32: 139 | G32: 142 | H32: 142 | I32: 53 | J32: 526
A33: 45 - 49 | B33: 3678 | C33: 1733 | D33: 526 | E33: 240 | F33: 195 | G33: 150 | H33: 107 | I33: 102 | J33: 625
A34: 50 - 54 | B34: 3277 | C34: 1449 | D34: 473 | E34: 204 | F34: 208 | G34: 105 | H34: 123 | I34: 111 | J34: 604
A35: 55 - 59 | B35: 2421 | C35: 913 | D35: 339 | E35: 199 | F35: 163 | G35: 84 | H35: 127 | I35: 83 | J35: 513
A36: 60 - 64 | B36: 2135 | C36: 812 | D36: 197 | E36: 188 | F36: 138 | G36: 95 | H36: 117 | I36: 73 | J36: 515
A37: 65 - 69 | B37: 1864 | C37: 737 | D37: 150 | E37: 170 | F37: 90 | G37: 83 | H37: 82 | I37: 59 | J37: 493
A38: 70 - 74 | B38: 1566 | C38: 693 | D38: 95 | E38: 119 | F38: 80 | G38: 61 | H38: 53 | I38: 67 | J38: 398
A39: 75 - 79 | B39: 1103 | C39: 559 | D39: 44 | E39: 79 | F39: 52 | G39: 32 | H39: 25 | I39: 39 | J39: 273
A40: 80 - 84 | B40: 749 | C40: 434 | D40: 27 | E40: 38 | F40: 22 | G40: 31 | H40: 15 | I40: 27 | J40: 155
A41: 85 - 89 | B41: 510 | C41: 327 | D41: 6 | E41: 23 | F41: 11 | G41: 26 | H41: 7 | I41: 15 | J41: 95
A42: 90 y más | B42: 374 | C42: 274 | D42: 4 | E42: 7 | F42: 10 | G42: 7 | H42: 1 | I42: 12 | J42: 59
A44: Mujeres | B44: =SUM(B45:B60) -> 34231 | C44: 18567 | D44: 4289 | E44: 2244 | F44: 1072 | G44: 973 | H44: 880 | I44: 918 | J44: 5288
A45: 18 - 19 | B45: =SUM(C45:J45) -> 305 | C45: 127 | D45: 107 | E45: 5 | F45: 7 | G45: 3 | H45: 8 | I45: 6 | J45: 42
A46: 20 - 24 | B46: =SUM(C46:J46) -> 600 | C46: 266 | D46: 192 | E46: 7 | F46: 19 | G46: 21 | H46: 14 | I46: 9 | J46: 72
A47: 25 - 29 | B47: 1471 | C47: 862 | D47: 250 | E47: 34 | F47: 52 | G47: 37 | H47: 35 | I47: 13 | J47: 188
A48: 30 - 34 | B48: 2656 | C48: 1704 | D48: 348 | E48: 52 | F48: 71 | G48: 64 | H48: 67 | I48: 43 | J48: 307
A49: 35 - 39 | B49: 4043 | C49: 2346 | D49: 656 | E49: 170 | F49: 83 | G49: 92 | H49: 101 | I49: 39 | J49: 556
A50: 40 - 44 | B50: 4497 | C50: 2420 | D50: 706 | E50: 265 | F50: 140 | G50: 114 | H50: 127 | I50: 77 | J50: 648
A51: 45 - 49 | B51: 4291 | C51: 2259 | D51: 588 | E51: 288 | F51: 144 | G51: 135 | H51: 125 | I51: 110 | J51: 642
A52: 50 - 54 | B52: 3813 | C52: 1914 | D52: 528 | E52: 267 | F52: 139 | G52: 110 | H52: 108 | I52: 124 | J52: 623
A53: 55 - 59 | B53: 3280 | C53: 1651 | D53: 369 | E53: 285 | F53: 109 | G53: 84 | H53: 112 | I53: 121 | J53: 549
A54: 60 - 64 | B54: 2801 | C54: 1412 | D54: 247 | E54: 337 | F54: 77 | G54: 74 | H54: 71 | I54: 103 | J54: 480
A55: 65 - 69 | B55: 2031 | C55: 1000 | D55: 143 | E55: 213 | F55: 61 | G55: 77 | H55: 56 | I55: 94 | J55: 387
A56: 70 - 74 | B56: 1493 | C56: 801 | D56: 68 | E56: 152 | F56: 50 | G56: 56 | H56: 23 | I56: 72 | J56: 271
A57: 75 - 79 | B57: 1071 | C57: 616 | D57: 41 | E57: 66 | F57: 40 | G57: 47 | H57: 14 | I57: 34 | J57: 213
A58: 80 - 84 | B58: 887 | C58: 541 | D58: 27 | E58: 61 | F58: 33 | G58: 22 | H58: 13 | I58: 29 | J58: 161
A59: 85 - 89 | B59: 596 | C59: 377 | D59: 13 | E59: 25 | F59: 27 | G59: 25 | H59: 2 | I59: 33 | J59: 94
A60: 90 y más | B60: 396 | C60: 271 | D60: 6 | E60: 17 | F60: 20 | G60: 12 | H60: 4 | I60: 11 | J60: 55
A63: Fuente: Sección Padrón Electoral del Tribunal Supremo de Elecciones.

Sheet G2
A2: Costa Rica | E2: GRÁFICO 2
A3: Resto de países | B3: 10429 | C3: 16.91152624 | E3: COSTA RICA: PORCENTAJE DEL ELECTORADO NATURALIZADO
A4: Panamá | B4: 1612 | C4: 2.613997535 | E4: POR PAÍS DE ORIGEN, AL 31 DE DICIEMBRE 2017
A5: Perú | B5: 1879 | C5: 3.046961147
A6: China | B6: 2134 | C6: 3.46046572
A7: Cuba | B7: 2421 | C7: 3.925861062
A8: El Salvador | B8: 3938 | C8: 6.385807874
A9: Colombia | B9: 8089 | C9: 13.11701369
A10: Nicaragua | B10: 31166 | C10: 50.53836674
B11: 61668
A13: Los datos se copian del cuadro respectivo
A14: ya que el total de cada país puede variar | C14: 0
A15: y por tanto la posición dentros del gráfico
C16: 0
C18: 0
C20: 0
C22: 0
C24: 0
C26: 0
C28: 0
C30: 0
E31: Fuente: Cuadro 5.

Sheet 6
A1: CUADRO 6
A2: COSTA RICA: MOVIMIENTOS AL PADRÓN NACIONAL ELECTORAL
A3: POR TIPO DE MOVIMIENTO, SEGÚN MES
A4: AL 31 DE DICIEMBRE 2017
A6: Mes | B6: Padrón Nacional Electoral anterior | D6: Tipo de movimiento | O6: Padrón Nacional Electoral actual 2/
D7: Inclusiones | I7: Exclusiones
D8: Cédulas Primera vez1/ | F8: Cédulas renovadas | I8: Defunción | K8: Cédulas vencidas | M8: Otras
A10: Enero | B10: 3256590 | D10: 9086 | F10: 5740 | I10: 2037 | K10: 5573 | M10: 2 | O10: 3263804
A11: Febrero | B11: 3263804 | D11: 6086 | F11: 3888 | I11: 2625 | K11: 500 | M11: 7 | O11: 3270646
A12: Marzo | B12: 3270646 | D12: 7152 | F12: 2956 | I12: 1154 | K12: 0 | M12: 8 | O12: 3279592
A13: Abril | B13: 3279592 | D13: 6124 | F13: 1582 | I13: 1923 | K13: 0 | M13: 2 | O13: 3285373
A14: Mayo | B14: 3285373 | D14: 7842 | F14: 1613 | I14: 1864 | K14: 0 | M14: 2 | O14: 3292962
A15: Junio | B15: 3292962 | D15: 7006 | F15: 1294 | I15: 1424 | K15: 0 | M15: 4 | O15: 3299834
A16: Julio | B16: 3299834 | D16: 7762 | F16: 1120 | I16: 1715 | K16: 0 | M16: 1 | O16: 3307000
A17: Agosto | B17: 3307000 | D17: 7366 | F17: 925 | I17: 1880 | K17: 0 | M17: 7 | O17: 3313404
A18: Setiembre | B18: 3313404 | D18: 9981 | F18: 863 | I18: 2329 | K18: 0 | M18: 9 | O18: 3321910
A19: Octubre | B19: 3321910 | D19: 3125 | F19: 232 | I19: 2265 | K19: 0 | M19: 9 | O19: 3322993
A20: Noviembre | B20: 3322993 | D20: 15 | F20: 6 | I20: 680 | K20: 0 | M20: 5 | O20: 3322329
A21: Diciembre | B21: 3322329 | D21: 0 | F21: 0 | I21: 0 | K21: 0 | M21: 0 | O21: 3322329
A24: 1/ Incluye nuevos electores, inclusión condicional de nuevos electores y otras inclusiones.
A25: 2/ Incluye al electorado inscrito en Costa Rica y en el extranjero.
A27: Fuente: Sección Padrón Electoral del Tribunal Supremo de Elecciones.

Sheet 7
A1: CUADRO 7
A2: COSTA RICA: SOLICITUDES DE CÉDULA RECIBIDAS, POR CLASE DE SOLICITUD
A3: SEGÚN MES, AL 31 DE DICIEMBRE 2017
A4: (Absoluto y Porcentaje)
A6: Mes | B6: Clase de solicitud
B7: Absoluto | F7: Porcentaje
B8: Total | C8: Primera vez | D8: Duplicado | E8: Traslado | F8: Total | G8: Primera vez | H8: Duplicado | I8: Traslado
A10: TOTAL | B10: =SUM(B12:B23) -> 811972 | C10: =SUM(C12:C23) -> 84060 | D10: =SUM(D12:D23) -> 719896 | E10: =SUM(E12:E23) -> 8016 | F10: =SUM(G10:I10) -> 100 | G10: =C10/$B10*100 -> 10.35257373 | H10: =D10/$B10*100 -> 88.66020011 | I10: =E10/$B10*100 -> 0.9872261605
A12: Enero | B12: =SUM(C12:E12) -> 82102 | C12: 8073 | D12: 73884 | E12: 145 | F12: =SUM(G12:I12) -> 100 | G12: =C12/$B12*100 -> 9.832890794 | H12: =D12/$B12*100 -> 89.99049962 | I12: =E12/$B12*100 -> 0.1766095832
A13: Febrero | B13: =SUM(C13:E13) -> 68130 | C13: 6068 | D13: 61877 | E13: 185 | F13: 100 | G13: =C13/$B13*100 -> 8.906502275 | H13: 90.82195802 | I13: 0.2715397035
A14: Marzo | B14: 74856 | C14: 7092 | D14: 67376 | E14: 388 | F14: 100 | G14: 9.474190446 | H14: 90.00748103 | I14: 0.5183285241
A15: Abril | B15: 50903 | C15: 5749 | D15: 44794 | E15: 360 | F15: 100 | G15: 11.29402982 | H15: 87.99874271 | I15: 0.7072274719
A16: Mayo | B16: 69395 | C16: 7544 | D16: 61616 | E16: 235 | F16: 100 | G16: 10.87110022 | H16: 88.79025866 | I16: 0.3386411125
A17: Junio | B17: 67224 | C17: 7117 | D17: 59863 | E17: 244 | F17: 100 | G17: 10.58699274 | H17: 89.05004165 | I17: 0.3629656075
A18: Julio | B18: 67114 | C18: 7754 | D18: 58993 | E18: 367 | F18: 100 | G18: 11.55347617 | H18: 87.89969306 | I18: 0.5468307656
A19: Agosto | B19: 70515 | C19: 7492 | D19: 62513 | E19: 510 | F19: 100 | G19: 10.62468978 | H19: 88.65205985 | I19: 0.7232503723
A20: Setiembre | B20: 76171 | C20: 10239 | D20: 62406 | E20: 3526 | F20: =SUM(G20:I20) -> 100 | G20: 13.44212364 | H20: 81.92881805 | I20: 4.629058303
A21: Octubre | B21: 71445 | C21: 7889 | D21: 61557 | E21: 1999 | F21: 100 | G21: 11.04206033 | H21: 86.1599832 | I21: 2.79795647
A22: Noviembre | B22: 66432 | C22: 5301 | D22: 61102 | E22: 29 | F22: 100 | G22: 7.97958815 | H22: 91.97675819 | I22: 0.04365366089
A23: Diciembre | B23: 47685 | C23: 3742 | D23: 43915 | E23: 28 | F23: 100 | G23: 7.847331446 | H23: 92.09394988 | I23: =E23/$B23*100 -> 0.05871867464
A26: Fuente: Sección Solicitudes Cedulares y Coordinación de Servicios Regionales del Tribunal Supremo de Elecciones.

Sheet G3
A2: GRÁFICO 3
A3: COSTA RICA: PORCENTAJE DE SOLICITUDES DE CÉDULA RECIBIDAS | J3: SOLICITUDES CEDULARES RECIBIDAS
A4: POR CLASE DE SOLICITUD, AL 31 DE DICIEMBRE 2017 | J4: TOTAL | K4: 811972
J5: Duplicado | K5: 719896 | L5: 88.66020011
J6: Primera vez | K6: 84060 | L6: 10.35257373
E7: Sin lugar | J7: Traslado | K7: 8016 | L7: 0.9872261605
A30: Fuente: Cuadro 7.

Sheet 8
A1: CUADRO 8
A2: COSTA RICA: SOLICITUDES DE CÉDULA RECIBIDAS, POR CLASE DE SOLICITUD
A3: SEGÚN PROVINCIA, AL 31 DE DICIEMBRE 2017
A4: (Absoluto y Porcentaje)
A6: Provincia | B6: Clase de solicitud
B7: Absoluto | F7: Porcentaje
B8: Total | C8: Primera vez | D8: Duplicado | E8: Traslado | F8: Total | G8: Primera vez | H8: Duplicado | I8: Traslado
A10: Costa Rica | B10: =SUM(C10:E10) -> 811972 | C10: =SUM(C12:C19) -> 84060 | D10: =SUM(D12:D19) -> 719896 | E10: 8016 | F10: 100 | G10: 100 | H10: 100 | I10: 100
A12: San José | B12: =SUM(C12:E12) -> 323678 | C12: 32567 | D12: 287846 | E12: 3265 | F12: =(B12/B$10*100) -> 39.86319725 | G12: =(C12/C$10*100) -> 38.74256483 | H12: =D12/D$10*100 -> 39.98438663 | I12: =E12/E$10*100 -> 40.73103792
A13: Alajuela | B13: =SUM(C13:E13) -> 133019 | C13: 15709 | D13: 116316 | E13: 994 | F13: =(B13/B$10*100) -> 16.38221515 | G13: 18.68784202 | H13: =D13/D$10*100 -> 16.15733384 | I13: 12.4001996
A14: Cartago | B14: 58104 | C14: 7294 | D14: 50527 | E14: 283 | F14: 7.15591178 | G14: 8.677135379 | H14: 7.018652694 | I14: 3.530439122
A15: Heredia | B15: 58151 | C15: 6528 | D15: 50748 | E15: 875 | F15: 7.161700157 | G15: 7.765881513 | H15: 7.049351573 | I15: =E15/E$10*100 -> 10.91566866
A16: Guanacaste | B16: 56627 | C16: 5816 | D16: 50588 | E16: 223 | F16: 6.974008956 | G16: 6.918867476 | H16: 7.02712614 | I16: 2.781936128
A17: Puntarenas | B17: 77712 | C17: 7434 | D17: 69982 | E17: 296 | F17: 9.570773376 | G17: 8.843683084 | H17: 9.721126385 | I17: 3.69261477
A18: Limón | B18: 87012 | C18: 7797 | D18: 79127 | E18: 88 | F18: 10.71613307 | G18: 9.275517488 | H18: 10.99144876 | I18: 1.097804391
A19: Giras | B19: 17669 | C19: 915 | D19: 14762 | E19: 1992 | F19: =(B19/B$10*100) -> 2.176060258 | G19: =(C19/C$10*100) -> 1.088508208 | H19: =D19/D$10*100 -> 2.050573972 | I19: =E19/E$10*100 -> 24.8502994
A22: Fuente: Sección Solicitudes Cedulares y Coordinación de Servicios Regionales del Tribunal Supremo de Elecciones.

Sheet G4
A2: GRÁFICO 4
A3: COSTA RICA: SOLICITUDES DE CÉDULA RECIBIDAS, POR CLASE DE SOLICITUD | L3: PV | M3: DUP | N3: TRASL
A4: SEGÚN PROVINCIA, AL 31 DE DICIEMBRE 2017 | K4: San José | L4: 32567 | M4: 287846 | N4: 3265
K5: Alajuela | L5: 15709 | M5: 116316 | N5: 994
K6: Limón | L6: 7797 | M6: 79127 | N6: 88
E7: Sin lugar | K7: Puntarenas | L7: 7434 | M7: 69982 | N7: 296
K8: Cartago | L8: 7294 | M8: 50527 | N8: 283
K9: Guanacaste | L9: 5816 | M9: 50588 | N9: 223
K10: Heredia | L10: 6528 | M10: 50748 | N10: 875 | O10: 811972
K11: Ambulante | L11: 915 | M11: 14762 | N11: 1992
K12: Total | L12: 84060 | M12: 719896 | N12: 8016
L15: Duplicado | M15: Primera vez | N15: Traslado
K16: Ambulante | L16: 14.762 | M16: 0.915 | N16: 1.992
K17: Heredia | L17: 50.748 | M17: 6.528 | N17: 0.875
K18: Guanacaste | L18: 50.588 | M18: 5.816 | N18: 0.223
K19: Cartago | L19: 50.527 | M19: 7.294 | N19: 0.283
K20: Puntarenas | L20: 69.982 | M20: 7.434 | N20: 0.296
K21: Limón | L21: 79.127 | M21: 7.797 | N21: 0.088
K22: Alajuela | L22: 116.316 | M22: 15.709 | N22: 0.994
K23: San José | L23: 287.846 | M23: 32.567 | N23: 3.265
K24: Total | L24: 719.896 | M24: 84.06 | N24: 8.016
A31: Fuente: Cuadro 8.

Sheet 9
A1: CUADRO 9
A2: COSTA RICA: SOLICITUDES DE CÉDULA RECIBIDAS
A3: POR FUENTE DE INGRESO, SEGÚN MES
A4: AL 31 DE DICIEMBRE 2017
A6: Mes | B6: Fuente de ingreso
B7: Total | C7: Sede central | D7: Oficinas regionales 1/ | E7: Consulados | F7: Cedulación a domicilio | G7: Cedulación ambulante
A9: TOTAL | B9: =SUM(B11:B22) -> 811972 | C9: 276411 | D9: 508711 | E9: 5027 | F9: 4154 | G9: 17669
A11: Enero | B11: =SUM(C11:G11) -> 82102 | C11: 28526 | D11: 53128 | E11: 131 | F11: 290 | G11: 27
A12: Febrero | B12: =SUM(C12:G12) -> 68130 | C12: 22487 | D12: 43989 | E12: 523 | F12: 303 | G12: 828
A13: Marzo | B13: 74856 | C13: 25669 | D13: 47709 | E13: 221 | F13: 303 | G13: 954
A14: Abril | B14: 50903 | C14: 17661 | D14: 31851 | E14: 347 | F14: 388 | G14: 656
A15: Mayo | B15: 69395 | C15: 24020 | D15: 43423 | E15: 731 | F15: 502 | G15: 719
A16: Junio | B16: 67224 | C16: 22755 | D16: 42569 | E16: 461 | F16: 343 | G16: 1096
A17: Julio | B17: 67114 | C17: 22896 | D17: 40607 | E17: 319 | F17: 299 | G17: 2993
A18: Agosto | B18: 70515 | C18: 23632 | D18: 42228 | E18: 284 | F18: 362 | G18: 4009
A19: Setiembre | B19: 76171 | C19: 23988 | D19: 45567 | E19: 538 | F19: 284 | G19: 5794
A20: Octubre | B20: 71445 | C20: 24028 | D20: 45521 | E20: 947 | F20: 356 | G20: 593
A21: Noviembre | B21: 66432 | C21: 23326 | D21: 42413 | E21: 273 | F21: 420 | G21: 0
A22: Diciembre | B22: 47685 | C22: 17423 | D22: 29706 | E22: 252 | F22: 304 | G22: 0
A25: 1/ El Tribunal Supremo de Elecciones cuenta con 32 Oficinas Regionales.
A27: Fuente: Sección Solicitudes Cedulares y Coordinación de Servicios Regionales del Tribunal Supremo de Elecciones.

Sheet G5
A2: GRÁFICO 5
A3: COSTA RICA: PORCENTAJE DE SOLICITUDES DE CÉDULA RECIBIDAS | J3: SOLICITUDES CEDULARES RECIBIDAS
A4: POR FUENTE DE INGRESO, AL 31 DE DICIEMBRE 2017 | J4: TOTAL | K4: 811972
J5: Oficinas Regionales | K5: 508711 | L5: 62.65129832
J6: Sede Central | K6: 276411 | L6: 34.04193741
E7: Sin lugar | J7: Cedulación Ambulante | K7: 17669 | L7: 2.176060258
J8: Consulados y domicilio | K8: 9181 | L8: 1.130704014
J11: Chequear que el orden sea de mayor a menor
A29: Fuente: Cuadro 9.

Sheet 10
A2: CUADRO 10
A3: SOLICITUDES DE CÉDULA RECIBIDAS EN LAS OFICINAS REGIONALES
A4: POR MES, SEGÚN OFICINA REGIONAL
A5: AL 31 DE DICIEMBRE 2017
A7: Oficina Regional | B7: Total | C7: Enero | D7: Febrero | E7: Marzo | F7: Abril | G7: Mayo | H7: Junio | I7: Julio | J7: Agosto | K7: Setiembre | L7: Octubre | M7: Noviembre | N7: Diciembre
A9: TOTAL | B9: =SUM(B11:B42) -> 508711 | C9: =SUM(C11:C42) -> 53128 | D9: 43989 | E9: 47709 | F9: 31851 | G9: 43423 | H9: 42569 | I9: 40607 | J9: 42228 | K9: 45567 | L9: 45521 | M9: 42413 | N9: 29706
A11: Alajuela | B11: =SUM(C11:N11) -> 28017 | C11: 4670 | D11: 3669 | E11: 4047 | F11: 2730 | G11: 3883 | H11: 3663 | I11: 340 | J11: 3631 | K11: 459 | L11: 356 | M11: 331 | N11: 238
A12: Atenas | B12: 5241 | C12: 433 | D12: 384 | E12: 367 | F12: 289 | G12: 376 | H12: 349 | I12: 500 | J12: 350 | K12: 575 | L12: 613 | M12: 578 | N12: 427
A13: Buenos Aires | B13: 8315 | C13: 656 | D13: 583 | E13: 636 | F13: 423 | G13: 567 | H13: 512 | I13: 788 | J13: 582 | K13: 1018 | L13: 1015 | M13: 907 | N13: 628
A14: Cañas | B14: 23828 | C14: 945 | D14: 889 | E14: 884 | F14: 672 | G14: 853 | H14: 849 | I14: 3913 | J14: 713 | K14: 4189 | L14: 4073 | M14: 3577 | N14: 2271
A15: Cartago | B15: 31811 | C15: 4854 | D15: 3752 | E15: 4265 | F15: 2810 | G15: 4047 | H15: 3841 | I15: 870 | J15: 3879 | K15: 927 | L15: 955 | M15: 937 | N15: 674
A16: Corredores | B16: 9625 | C16: 1248 | D16: 1042 | E16: 1041 | F16: 706 | G16: 1018 | H16: 966 | I16: 567 | J16: 882 | K16: 611 | L16: 561 | M16: 573 | N16: 410
A17: Coto Brus | B17: 6521 | C17: 624 | D17: 592 | E17: 658 | F17: 441 | G17: 533 | H17: 580 | I17: 533 | J17: 536 | K17: 525 | L17: 605 | M17: 526 | N17: 368
A18: Golfito | B18: 10093 | C18: 686 | D18: 628 | E18: 621 | F18: 404 | G18: 619 | H18: 552 | I18: 1165 | J18: 493 | K18: 1374 | L18: 1432 | M18: 1238 | N18: 881
A19: Grecia | B19: =SUM(C19:N19) -> 10180 | C19: 1572 | D19: 1284 | E19: 1384 | F19: 907 | G19: 1265 | H19: 1232 | I19: 236 | J19: 1289 | K19: 306 | L19: 308 | M19: 253 | N19: 144
A20: Guatuso | B20: 21822 | C20: 323 | D20: 283 | E20: 340 | F20: 177 | G20: 258 | H20: 246 | I20: 4011 | J20: 286 | K20: 4854 | L20: 4493 | M20: 3854 | N20: 2697
A21: Heredia | B21: 29962 | C21: 4971 | D21: 4160 | E21: 4332 | F21: 3022 | G21: 4204 | H21: 4005 | I21: 199 | J21: 4081 | K21: 282 | L21: 264 | M21: 264 | N21: 178
A22: Jicaral | B22: 11312 | C22: 279 | D22: 238 | E22: 294 | F22: 182 | G22: 265 | H22: 236 | I22: 1876 | J22: 240 | K22: 2006 | L22: 2105 | M22: 2076 | N22: 1515
A23: Liberia | B23: 24952 | C23: 2349 | D23: 1960 | E23: 2270 | F23: 1425 | G23: 1994 | H23: 1846 | I23: 2278 | J23: 2025 | K23: 2366 | L23: 2400 | M23: 2415 | N23: 1624
A24: Limón | B24: 18252 | C24: 2918 | D24: 2406 | E24: 2680 | F24: 1735 | G24: 2532 | H24: 2461 | I24: 234 | J24: 2227 | K24: 305 | L24: 291 | M24: 268 | N24: 195
A25: Los Chiles | B25: 6669 | C25: 374 | D25: 292 | E25: 329 | F25: 193 | G25: 273 | H25: 249 | I25: 838 | J25: 271 | K25: 1104 | L25: 1053 | M25: 978 | N25: 715
A26: Nicoya | B26: 9696 | C26: 1184 | D26: 916 | E26: 1071 | F26: 683 | G26: 941 | H26: 880 | I26: 617 | J26: 927 | K26: 714 | L26: 693 | M26: 612 | N26: 458
A27: Orotina | B27: 6898 | C27: 780 | D27: 701 | E27: 767 | F27: 480 | G27: 705 | H27: 623 | I27: 355 | J27: 627 | K27: 450 | L27: 526 | M27: 530 | N27: 354
A28: Osa | B28: 13847 | C28: 549 | D28: 468 | E28: 504 | F28: 336 | G28: 474 | H28: 411 | I28: 2149 | J28: 413 | K28: 2441 | L28: 2300 | M28: 2140 | N28: 1662
A29: Pérez Zeledón | B29: 29286 | C29: 2761 | D29: 2364 | E29: 2462 | F29: 1695 | G29: 1305 | H29: 2177 | I29: 2780 | J29: 2307 | K29: 2896 | L29: 3260 | M29: 3134 | N29: 2145
A30: Pococí | B30: 33135 | C30: 3918 | D30: 3178 | E30: 3356 | F30: 2226 | G30: 3135 | H30: 3092 | I30: 2350 | J30: 2986 | K30: 2394 | L30: 2357 | M30: 2418 | N30: 1725
A31: Puntarenas | B31: 20966 | C31: 3192 | D31: 2500 | E31: 2804 | F31: 1787 | G31: 2612 | H31: 2557 | I31: 610 | J31: 2353 | K31: 813 | L31: 694 | M31: 655 | N31: 389
A32: Puriscal | B32: 8330 | C32: 887 | D32: 655 | E32: 680 | F32: 462 | G32: 694 | H32: 633 | I32: 748 | J32: 599 | K32: 810 | L32: 805 | M32: 818 | N32: 539
A33: Quepos | B33: =SUM(C33:N33) -> 22913 | C33: 987 | D33: 774 | E33: 887 | F33: 612 | G33: 611 | H33: 845 | I33: 3473 | J33: 772 | K33: 3870 | L33: 3799 | M33: 3654 | N33: 2629
A34: San Carlos | B34: 27921 | C34: 2816 | D34: 2345 | E34: 2500 | F34: 1882 | G34: 2449 | H34: 2380 | I34: 2332 | J34: 2403 | K34: 2439 | L34: 2510 | M34: 2257 | N34: 1608
A35: San Ramón | B35: 20786 | C35: 2225 | D35: 1765 | E35: 2025 | F35: 1269 | G35: 1837 | H35: 1739 | I35: 1527 | J35: 1698 | K35: 2055 | L35: 1852 | M35: 1618 | N35: 1176
A36: Santa Cruz | B36: 11729 | C36: 1096 | D36: 829 | E36: 1124 | F36: 722 | G36: 1126 | H36: 988 | I36: 958 | J36: 951 | K36: 1079 | L36: 1044 | M36: 1067 | N36: 745
A37: Sarapiquí | B37: 9467 | C37: 890 | D37: 814 | E37: 923 | F37: 645 | G37: 808 | H37: 740 | I37: 749 | J37: 797 | K37: 825 | L37: 887 | M37: 819 | N37: 570
A38: Siquirres | B38: 14957 | C38: 1609 | D38: 1297 | E38: 1342 | F38: 963 | G38: 1262 | H38: 1249 | I38: 1160 | J38: 1219 | K38: 1169 | L38: 1465 | M38: 1319 | N38: 903
A39: Talamanca | B39: 7907 | C39: 927 | D39: 1314 | E39: 760 | F39: 448 | G39: 640 | H39: 586 | I39: 535 | J39: 606 | K39: 499 | L39: 565 | M39: 613 | N39: 414
A40: Tarrazú | B40: 4552 | C40: 417 | D40: 376 | E40: 474 | F40: 298 | G40: 401 | H40: 367 | I40: 375 | J40: 367 | K40: 417 | L40: 419 | M40: 357 | N40: 284
A41: Turrialba | B41: 12633 | C41: 1268 | D41: 1034 | E41: 1147 | F41: 765 | G41: 1090 | H41: 1086 | I41: 1018 | J41: 1105 | K41: 1195 | L41: 1174 | M41: 1002 | N41: 749
A42: Upala | B42: 7088 | C42: 720 | D42: 497 | E42: 735 | F42: 462 | G42: 646 | H42: 629 | I42: 523 | J42: 613 | K42: 600 | L42: 647 | M42: 625 | N42: 391
A45: FUENTE: Coordinación de Servicios Regionales del Tribunal Supremo de Elecciones.

Sheet 11
A1: CUADRO 11
A2: COSTA RICA: PRODUCTOS Y SERVICIOS BRINDADOS, POR TIPO DE SERVICIO
A3: SEGÚN MES, AL 31 DE DICIEMBRE 2017
A5: Mes | B5: Productos y Sevicios
B6: Cédulas de identidad impresas | C6: Tarjetas identidad de menores impresas | D6: Certificaciones y constancias expedidas | E6: Asambleas de partidos políticos fiscalizadas | F6: Atención de consultas en materia electoral 1/ | G6: Movimientos y actualizaciones al Padrón Electoral 2/
A8: Total | B8: =SUM(B10:B21) -> 801311 | C8: 146218 | D8: 2259884 | E8: 2561 | F8: 38261 | G8: 684873
A10: Enero | B10: 80265 | C10: 16743 | D10: 220097 | E10: 215 | F10: 2080 | G10: 94199
A11: Febrero | B11: 66418 | C11: 15182 | D11: 244264 | E11: 165 | F11: 2400 | G11: 70683
A12: Marzo | B12: 75244 | C12: 9882 | D12: 236765 | E12: 204 | F12: 2566 | G12: 77746
A13: Abril | B13: 50936 | C13: 7084 | D13: 137849 | E13: 549 | F13: 2327 | G13: 53759
A14: Mayo | B14: 69770 | C14: 9574 | D14: 189878 | E14: 165 | F14: 2172 | G14: 73812
A15: Junio | B15: 66025 | C15: 9964 | D15: 175993 | E15: 638 | F15: 2393 | G15: 70236
A16: Julio | B16: 65865 | C16: 12691 | D16: 159702 | E16: 178 | F16: 2545 | G16: 71294
A17: Agosto | B17: 69157 | C17: 10437 | D17: 193744 | E17: 189 | F17: 2777 | G17: 73666
A18: Setiembre | B18: 70409 | C18: 11546 | D18: 153628 | E18: 195 | F18: 3090 | G18: 79092
A19: Octubre | B19: 68136 | C19: 14210 | D19: 176539 | E19: 43 | F19: 4674 | G19: 19516
A20: Noviembre | B20: 69169 | C20: 15656 | D20: 221628 | E20: 10 | F20: 5093 | G20: 870
A21: Diciembre | B21: 49917 | C21: 13249 | D21: 149797 | E21: 10 | F21: 6144 | G21: 0
A24: 1/ De Partidos Políticos, Municipalidades, Asamblea Legislativa y otros.
A25: 2/ El Padrón Nacional Electoral se cerró en octubre 2014 debido a las elecciones municipales de febrero 2015.
A27: Fuente: Oficinas del Tribunal Supremo de Elecciones.

Sheet 12
A2: CUADRO 12
A3: COSTA RICA: CERTIFICACIONES, CONSTANCIAS Y TARJETAS DE IDENTIDAD DE MENORES EXPEDIDAS
A4: SEGÚN MES, AL 31 DE DICIEMBRE 2017
A6: Certificaciones, constancias y TIM | B6: Total | C6: Enero | D6: Febrero | E6: Marzo | F6: Abril | G6: Mayo | H6: Junio | I6: Julio | J6: Agosto | K6: Setiembre | L6: Octubre | M6: Noviembre | N6: Diciembre
A8: Certificaciones y constancias expedidas | B8: =SUM(C8:N8) -> 2259884 | C8: =C9+C12 -> 220097 | D8: =D9+D12 -> 244264 | E8: =E9+E12 -> 236765 | F8: 137849 | G8: 189878 | H8: 175993 | I8: 159702 | J8: 193744 | K8: 153628 | L8: 176539 | M8: =M9+M12 -> 221628 | N8: 149797
A9: Sede Central | B9: =SUM(B10:B11) -> 771211 | C9: =SUM(C10:C11) -> 76169 | D9: =SUM(D10:D11) -> 67189 | E9: 68383 | F9: 44444 | G9: 64445 | H9: 63030 | I9: 62033 | J9: 72343 | K9: 58066 | L9: 63520 | M9: 77888 | N9: 53701
A10: Certificaciones | B10: =SUM(C10:N10) -> 771211 | C10: 76169 | D10: 67189 | E10: 68383 | F10: 44444 | G10: 64445 | H10: 63030 | I10: 62033 | J10: 72343 | K10: 58066 | L10: 63520 | M10: 77888 | N10: 53701
A11: Constancias | B11: =SUM(C11:N11) -> 0 | C11: 0 | D11: 0 | E11: 0 | F11: 0 | G11: 0 | H11: 0 | I11: 0 | J11: 0 | K11: 0 | L11: 0 | M11: 0 | N11: 0
A12: Oficinas regionales | B12: =SUM(B13:B14) -> 1488673 | C12: =SUM(C13:C14) -> 143928 | D12: =SUM(D13:D14) -> 177075 | E12: 168382 | F12: 93405 | G12: 125433 | H12: 112963 | I12: 97669 | J12: 121401 | K12: 95562 | L12: 113019 | M12: =SUM(M13:M14) -> 143740 | N12: 96096
A13: Certificaciones | B13: =SUM(C13:N13) -> 1394370 | C13: 134425 | D13: 161545 | E13: 158939 | F13: 86275 | G13: 118823 | H13: 109175 | I13: 93703 | J13: 115422 | K13: 89764 | L13: 103698 | M13: 130537 | N13: 92064
A14: Constancias | B14: =SUM(C14:N14) -> 94303 | C14: 9503 | D14: 15530 | E14: 9443 | F14: 7130 | G14: 6610 | H14: 3788 | I14: 3966 | J14: 5979 | K14: 5798 | L14: 9321 | M14: 13203 | N14: 4032
B15: =SUM(C15:D15) -> 0
A16: TIM expedidas | B16: =SUM(C16:N16) -> 146218 | C16: =C17+C20+C23 -> 16743 | D16: =D17+D20+D23 -> 15182 | E16: 9882 | F16: 7084 | G16: 9574 | H16: 9964 | I16: 12691 | J16: 10437 | K16: 11546 | L16: 14210 | M16: 15656 | N16: 13249
A17: Departamento Civil | B17: =SUM(C17:N17) -> 39518 | C17: =SUM(C18:C19) -> 4773 | D17: =SUM(D18:D19) -> 3518 | E17: 2467 | F17: 1959 | G17: 2653 | H17: 2541 | I17: 3967 | J17: 2952 | K17: 3245 | L17: 3992 | M17: 4152 | N17: 3299
A18: Emitidas por primera vez | B18: =SUM(C18:N18) -> 19158 | C18: 2209 | D18: 1310 | E18: 1123 | F18: 989 | G18: 1347 | H18: 1229 | I18: 2124 | J18: 1493 | K18: 1747 | L18: 2297 | M18: 1837 | N18: 1453
A19: Duplicadas | B19: =SUM(C19:N19) -> 20360 | C19: 2564 | D19: 2208 | E19: 1344 | F19: 970 | G19: 1306 | H19: 1312 | I19: 1843 | J19: 1459 | K19: 1498 | L19: 1695 | M19: 2315 | N19: 1846
A20: Oficinas regionales | B20: =SUM(B21:B22) -> 105574 | C20: =SUM(C21:C22) -> 11970 | D20: =SUM(D21:D22) -> 11427 | E20: =SUM(E21:E22) -> 7213 | F20: 5125 | G20: 6692 | H20: 6989 | I20: 8724 | J20: 7485 | K20: 8301 | L20: 10218 | M20: 11480 | N20: 9950
A21: Emitidas por primera vez | B21: =SUM(C21:N21) -> 53314 | C21: 5599 | D21: 4372 | E21: 3340 | F21: 2617 | G21: 3456 | H21: 3490 | I21: 4260 | J21: 4037 | K21: 4845 | L21: 6214 | M21: 6219 | N21: 4865
A22: Duplicadas | B22: =SUM(C22:N22) -> 52260 | C22: 6371 | D22: 7055 | E22: 3873 | F22: 2508 | G22: 3236 | H22: 3499 | I22: 4464 | J22: 3448 | K22: 3456 | L22: 4004 | M22: 5261 | N22: 5085
A23: Giras 1/ | B23: =SUM(B24:B25) -> 1126 | C23: =SUM(C24:C25) -> 0 | D23: =SUM(D24:D25) -> 237 | E23: =SUM(E24:E25) -> 202 | F23: 0 | G23: 229 | H23: 434 | I23: 0 | J23: 0 | K23: 0 | L23: 0 | M23: 24 | N23: 0
A24: Emitidas por primera vez | B24: =SUM(C24:N24) -> 263 | C24: 0 | D24: 36 | E24: 33 | F24: 0 | G24: 53 | H24: 120 | I24: 0 | J24: 0 | K24: 0 | L24: 0 | M24: 21 | N24: 0
A25: Duplicadas | B25: =SUM(C25:N25) -> 863 | C25: 0 | D25: 201 | E25: 169 | F25: 0 | G25: 176 | H25: 314 | I25: 0 | J25: 0 | K25: 0 | L25: 0 | M25: 3 | N25: 0
A28: 1/ No se realizaron giras en enero.
A29: Fuente: Informe mensual de labores del Departamento Civil, Departamento Electoral y Coordinación de Servicios Regionales del Tribunal Supremo de Elecciones.

Sheet 13
A1: CUADRO 13
A2: COSTA RICA: INSCRIPCIONES CIVILES POR MES, SEGÚN CLASE DE INSCRIPCIÓN
A3: AL 31 DE DICIEMBRE 2017
A5: Clase de inscripción 1/ | B5: Total | C5: Mes
C6: Enero | D6: Febrero | E6: Marzo | F6: Abril | G6: Mayo | H6: Junio | I6: Julio | J6: Agosto | K6: Setiembre | L6: Octubre | M6: Noviembre | N6: Diciembre
A8: Nacimientos | B8: =SUM(C8:N8) -> 54692 | C8: 7203 | D8: 3648 | E8: 4936 | F8: 3380 | G8: 5903 | H8: 4155 | I8: 4244 | J8: 4829 | K8: 3351 | L8: 4430 | M8: 5713 | N8: 2900
A10: Matrimonios | B10: =SUM(B11:B13) -> 26184 | C10: =SUM(C11:C13) -> 3367 | D10: 2876 | E10: 2633 | F10: 1646 | G10: 2801 | H10: 1925 | I10: 2081 | J10: 1908 | K10: 1462 | L10: 1270 | M10: 2465 | N10: 1750
A11: Católicos | B11: =SUM(C11:N11) -> 6931 | C11: 1077 | D11: 733 | E11: 548 | F11: 463 | G11: 881 | H11: 345 | I11: 625 | J11: 757 | K11: 284 | L11: 473 | M11: 366 | N11: 379
A12: Civiles | B12: =SUM(C12:N12) -> 18348 | C12: 2184 | D12: 1956 | E12: 2063 | F12: 1162 | G12: 1821 | H12: 1531 | I12: 1393 | J12: 942 | K12: 1143 | L12: 749 | M12: 2083 | N12: 1321
A13: Extranjeros2/ | B13: =SUM(C13:N13) -> 905 | C13: 106 | D13: 187 | E13: 22 | F13: 21 | G13: 99 | H13: 49 | I13: 63 | J13: 209 | K13: 35 | L13: 48 | M13: 16 | N13: 50
A15: Defunciones | B15: =SUM(C15:N15) -> 25370 | C15: 2855 | D15: 2287 | E15: 2173 | F15: 1471 | G15: 2657 | H15: 1925 | I15: 1988 | J15: 2171 | K15: 2171 | L15: 2190 | M15: 2221 | N15: 1261
A18: 1/ Todos los datos se refieren a hechos inscritos en el mes respectivo, no así a los ocurridos.
A20: 2/ Matrimonios inscritos, pero realizados en el extranjero.
A22: Fuente: Sección de Inscripciones del Tribunal Supremo de Elecciones.

Sheet G6
A2: GRÁFICO 6
A3: COSTA RICA: MATRIMONIOS INSCRITOS, SEGÚN CLASE DE INSCRIPCIÓN | K3: MATRIMONIOS INSCRITOS
A4: AL 31 DE DICIEMBRE 2017 | K4: Civiles | L4: 18348 | M4: =L4/L7*100 -> 70.07332722
K5: Católicos | L5: 6931 | M5: =L5/L7*100 -> 26.47036358
K6: Extranjeros | L6: 905 | M6: =L6/L7*100 -> 3.456309196
E7: Sin lugar | K7: Total | L7: =SUM(L4:L6) -> 26184
A29: Fuente: Cuadro 13.

Sheet 14
A1: CUADRO 14
A2: COSTA RICA: NACIMIENTOS INSCRITOS, POR PROVINCIA Y PARTIDO ESPECIAL
A3: SEGÚN MES, AL 31 DE DICIEMBRE 2017
A5: Mes | B5: Total | C5: San José | D5: Alajuela | E5: Cartago | F5: Heredia | G5: Guanacaste | H5: Puntarenas | I5: Limón | J5: Partido especial 1/
A7: Costa Rica | B7: =SUM(B9:B20) -> 54692 | C7: =SUM(C9:C20) -> 18624 | D7: =SUM(D9:D20) -> 11264 | E7: 5671 | F7: 2772 | G7: 3190 | H7: 5629 | I7: 5833 | J7: 1709
A9: Enero | B9: =SUM(C9:J9) -> 7203 | C9: 2765 | D9: 1313 | E9: 771 | F9: 516 | G9: 586 | H9: 631 | I9: 487 | J9: 134
A10: Febrero | B10: =SUM(C10:J10) -> 3648 | C10: 1003 | D10: 738 | E10: 231 | F10: 148 | G10: 433 | H10: 554 | I10: 346 | J10: 195
A11: Marzo | B11: 4936 | C11: 1428 | D11: 1130 | E11: 427 | F11: 294 | G11: 249 | H11: 605 | I11: 619 | J11: 184
A12: Abril | B12: 3380 | C12: 1417 | D12: 579 | E12: 348 | F12: 232 | G12: 105 | H12: 251 | I12: 381 | J12: 67
A13: Mayo | B13: 5903 | C13: 1576 | D13: 1554 | E13: 420 | F13: 233 | G13: 391 | H13: 785 | I13: 718 | J13: 226
A14: Junio | B14: =SUM(C14:J14) -> 4155 | C14: 2067 | D14: 734 | E14: 208 | F14: 108 | G14: 118 | H14: 377 | I14: 392 | J14: 151
A15: Julio | B15: 4244 | C15: 1170 | D15: 824 | E15: 629 | F15: 231 | G15: 219 | H15: 472 | I15: 479 | J15: 220
A16: Agosto | B16: 4829 | C16: 1211 | D16: 885 | E16: 851 | F16: 206 | G16: 402 | H16: 571 | I16: 554 | J16: 149
A17: Setiembre | B17: 3351 | C17: 1705 | D17: 520 | E17: 217 | F17: 128 | G17: 158 | H17: 242 | I17: 281 | J17: 100
A18: Octubre | B18: 4430 | C18: 1175 | D18: 941 | E18: 539 | F18: 173 | G18: 267 | H18: 640 | I18: 639 | J18: 56
A19: Noviembre | B19: 5713 | C19: 1851 | D19: 1461 | E19: 800 | F19: 376 | G19: 133 | H19: 324 | I19: 636 | J19: 132
A20: Diciembre | B20: =SUM(C20:J20) -> 2900 | C20: 1256 | D20: 585 | E20: 230 | F20: 127 | G20: 129 | H20: 177 | I20: 301 | J20: 95
A23: 1/ Inscripción de nacimientos de costarricenses nacidos en el extranjero.
A25: Fuente: Sección de Inscripciones del Tribunal Supremo de Elecciones.

Sheet 15
A1: CUADRO 15
A2: COSTA RICA: DEFUNCIONES INSCRITAS, POR PROVINCIA, SEGÚN MES
A3: AL 31 DE DICIEMBRE 2017
A5: Mes | B5: Total | C5: San José | D5: Alajuela | E5: Cartago | F5: Heredia | G5: Guanacaste | H5: Puntarenas | I5: Limón
A7: Costa Rica | B7: =SUM(B9:B20) -> 25370 | C7: =SUM(C9:C20) -> 10029 | D7: 4138 | E7: 2644 | F7: 2425 | G7: 2261 | H7: 2082 | I7: 1791
A9: Enero | B9: =SUM(C9:I9) -> 2855 | C9: 768 | D9: 478 | E9: 393 | F9: 353 | G9: 248 | H9: 237 | I9: 378
A10: Febrero | B10: =SUM(C10:I10) -> 2287 | C10: 874 | D10: 377 | E10: 260 | F10: 248 | G10: 229 | H10: 135 | I10: 164
A11: Marzo | B11: 2173 | C11: 1066 | D11: 348 | E11: 179 | F11: 143 | G11: 168 | H11: 143 | I11: 126
A12: Abril | B12: 1471 | C12: 555 | D12: 266 | E12: 168 | F12: 134 | G12: 113 | H12: 135 | I12: 100
A13: Mayo | B13: 2657 | C13: 1182 | D13: 345 | E13: 262 | F13: 232 | G13: 237 | H13: 199 | I13: 200
A14: Junio | B14: 1925 | C14: 1101 | D14: 205 | E14: 166 | F14: 130 | G14: 133 | H14: 118 | I14: 72
A15: Julio | B15: 1988 | C15: 772 | D15: 451 | E15: 193 | F15: 169 | G15: 116 | H15: 154 | I15: 133
A16: Agosto | B16: 2171 | C16: 789 | D16: 322 | E16: 225 | F16: 196 | G16: 323 | H16: 180 | I16: 136
A17: Setiembre | B17: 2171 | C17: 938 | D17: 366 | E17: 233 | F17: 135 | G17: 198 | H17: 147 | I17: 154
A18: Octubre | B18: 2190 | C18: 645 | D18: 409 | E18: 258 | F18: 407 | G18: 225 | H18: 132 | I18: 114
A19: Noviembre | B19: 2221 | C19: 792 | D19: 358 | E19: 186 | F19: 185 | G19: 169 | H19: 389 | I19: 142
A20: Diciembre | B20: 1261 | C20: 547 | D20: 213 | E20: 121 | F20: 93 | G20: 102 | H20: 113 | I20: 72
A23: Fuente: Sección de Inscripciones del Tribunal Supremo de Elecciones.

Sheet G8
A2: GRÁFICO 8 | K2: Nacimientos | L2: Defunciones
A3: COSTA RICA: NACIMIENTOS Y DEFUNCIONES INSCRITAS | K3: 54692 | L3: 25370
A4: POR MES, AL 31 DE DICIEMBRE 2017 | J4: ENE | K4: 7203 | L4: 2855
J5: FEB | K5: 3648 | L5: 2287
J6: MAR | K6: 4936 | L6: 2173
E7: Sin lugar | J7: ABR | K7: 3380 | L7: 1471
J8: MAY | K8: 5903 | L8: 2657
J9: JUN | K9: 4155 | L9: 1925
J10: JUL | K10: 4244 | L10: 1988
J11: AGO | K11: 4829 | L11: 2171
J12: SET | K12: 3351 | L12: 2171
J13: OCT | K13: 4430 | L13: 2190
J14: NOV | K14: 5713 | L14: 2221
J15: DIC | K15: 2900 | L15: 1261
A26: Fuente: Cuadros 14 y 15.

Sheet 16
A1: CUADRO 16
A2: COSTA RICA: MODIFICACIÓN DE ASIENTOS CIVILES POR MES, SEGÚN CLASE DE INSCRIPCIÓN
A3: AL 31 DE DICIEMBRE 2017
A5: Clase de inscripción 1/ | B5: Total | C5: Mes
C6: Enero | D6: Febrero | E6: Marzo | F6: Abril | G6: Mayo | H6: Junio | I6: Julio | J6: Agosto | K6: Setiembre | L6: Octubre | M6: Noviembre | N6: Diciembre
A8: Total | B8: =SUM(C8:N8) -> 52290 | C8: =SUM(C10:C32) -> 5117 | D8: =SUM(D10:D32) -> 3555 | E8: 4921 | F8: 3864 | G8: 5459 | H8: 6434 | I8: 3942 | J8: 5879 | K8: 3737 | L8: 3826 | M8: 1946 | N8: 3610
A10: Adopciones | B10: =SUM(C10:N10) -> 167 | C10: 15 | D10: 27 | E10: 9 | F10: 0 | G10: 17 | H10: 0 | I10: 11 | J10: 23 | K10: 25 | L10: 6 | M10: 34 | N10: 0
A11: Cambio de nombre | B11: =SUM(C11:N11) -> 78 | C11: 3 | D11: 11 | E11: 7 | F11: 2 | G11: 9 | H11: 9 | I11: 7 | J11: 8 | K11: 7 | L11: 7 | M11: 4 | N11: 4
A12: Curatela 2/ | B12: 9 | C12: 0 | D12: 0 | E12: 1 | F12: 0 | G12: 0 | H12: 1 | I12: 1 | J12: 1 | K12: 4 | L12: 0 | M12: 1 | N12: 0
A13: Declaración de parentalidad | B13: 20 | C13: 0 | D13: 1 | E13: 2 | F13: 0 | G13: 0 | H13: 3 | I13: 2 | J13: 1 | K13: 2 | L13: 2 | M13: 0 | N13: 7
A14: Dejar sin efecto la sentencia | B14: 7 | C14: 1 | D14: 0 | E14: 3 | F14: 0 | G14: 0 | H14: 2 | I14: 0 | J14: 0 | K14: 1 | L14: 0 | M14: 0 | N14: 0
A15: Depósito judicial | B15: 220 | C15: 31 | D15: 27 | E15: 22 | F15: 0 | G15: 38 | H15: 20 | I15: 37 | J15: 23 | K15: 0 | L15: 17 | M15: 0 | N15: 5
A16: Divorcio | B16: 12661 | C16: 1227 | D16: 1413 | E16: 825 | F16: 1078 | G16: 1393 | H16: 1569 | I16: 1227 | J16: 1062 | K16: 986 | L16: 576 | M16: 398 | N16: 907
A17: Exequátur de divorcio 3/ | B17: 76 | C17: 4 | D17: 4 | E17: 7 | F17: 0 | G17: 1 | H17: 9 | I17: 1 | J17: 9 | K17: 13 | L17: 8 | M17: 14 | N17: 6
A18: Guarda crianza y educación | B18: 11 | C18: 0 | D18: 4 | E18: 1 | F18: 0 | G18: 2 | H18: 0 | I18: 0 | J18: 2 | K18: 0 | L18: 2 | M18: 0 | N18: 0
A19: Impugnación de paternidad | B19: 284 | C19: 34 | D19: 31 | E19: 26 | F19: 34 | G19: 48 | H19: 18 | I19: 24 | J19: 25 | K19: 12 | L19: 6 | M19: 0 | N19: 26
A20: Impugnación de reconocimiento | B20: 126 | C20: 6 | D20: 13 | E20: 0 | F20: 0 | G20: 27 | H20: 17 | I20: 11 | J20: 18 | K20: 23 | L20: 5 | M20: 2 | N20: 4
A21: Insania 4/ | B21: 59 | C21: 7 | D21: 7 | E21: 3 | F21: 2 | G21: 7 | H21: 7 | I21: 6 | J21: 7 | K21: 7 | L21: 1 | M21: 0 | N21: 5
A22: Investigación de parentalidad | B22: 226 | C22: 20 | D22: 22 | E22: 48 | F22: 0 | G22: 45 | H22: 12 | I22: 18 | J22: 17 | K22: 14 | L22: 14 | M22: 3 | N22: 13
A23: Nombramiento de tutor | B23: 10 | C23: 2 | D23: 0 | E23: 1 | F23: 0 | G23: 2 | H23: 2 | I23: 1 | J23: 1 | K23: 1 | L23: 0 | M23: 0 | N23: 0
A24: Nulidad de matrinomio | B24: 93 | C24: 2 | D24: 9 | E24: 3 | F24: 2 | G24: 12 | H24: 5 | I24: 6 | J24: 8 | K24: 4 | L24: 11 | M24: 24 | N24: 7
A25: Ocurso | B25: 9226 | C25: 192 | D25: 106 | E25: 710 | F25: 1076 | G25: 256 | H25: 1787 | I25: 669 | J25: 1111 | K25: 420 | L25: 1462 | M25: 605 | N25: 832
A26: Pérdida de patria potestad | B26: 75 | C26: 15 | D26: 6 | E26: 3 | F26: 0 | G26: 3 | H26: 0 | I26: 7 | J26: 0 | K26: 27 | L26: 1 | M26: 0 | N26: 13
A27: Presunción de muerte | B27: 4 | C27: 1 | D27: 0 | E27: 1 | F27: 0 | G27: 1 | H27: 0 | I27: 0 | J27: 0 | K27: 1 | L27: 0 | M27: 0 | N27: 0
A28: Reconocimientos | B28: 22411 | C28: 3018 | D28: 1448 | E28: 2714 | F28: 1093 | G28: 2844 | H28: 2466 | I28: 1496 | J28: 2989 | K28: 1445 | L28: 983 | M28: 385 | N28: 1530
A29: Recuperación de nacionalidad | B29: 3 | C29: 1 | D29: 0 | E29: 1 | F29: 0 | G29: 1 | H29: 0 | I29: 0 | J29: 0 | K29: 0 | L29: 0 | M29: 0 | N29: 0
A30: Separación judicial | B30: 47 | C30: 4 | D30: 6 | E30: 4 | F30: 1 | G30: 10 | H30: 6 | I30: 7 | J30: 5 | K30: 0 | L30: 1 | M30: 0 | N30: 3
A31: Suspensión de patria potestad | B31: 73 | C31: 0 | D31: 11 | E31: 9 | F31: 7 | G31: 9 | H31: 5 | I31: 11 | J31: 6 | K31: 8 | L31: 4 | M31: 2 | N31: 1
A32: Otra | B32: 6404 | C32: 534 | D32: 409 | E32: 521 | F32: 569 | G32: 734 | H32: 496 | I32: 400 | J32: 563 | K32: 737 | L32: 720 | M32: 474 | N32: 247
A35: 1/ Todos los datos se refieren a hechos inscritos en el mes respectivo, no así a los ocurridos.
A37: 2/ Sistema de protección y guarda de las siguientes personas y es la institución jurídica creada por el amparo de la persona y los bienes del mayor de edad incapacitado.
A39: 3/ Reconocimiento de divorcio extranjero.
A41: 4/ Personas con demencia.
A43: Fuente: Sección de Actos Jurídicos del Tribunal Supremo de Elecciones.

Sheet G7
A2: GRÁFICO 7 | K2: MATRIMONIOS vs DIVORCIOS
A3: COSTA RICA: MATRIMONIOS Y DIVORCIOS INSCRITOS | L3: Matrimonios | M3: Divorcios
A4: POR MES, AL 31 DE DICIEMBRE 2017 | K4: ENE | L4: 3367 | M4: 1227
K5: FEB | L5: 2876 | M5: 1413
K6: MAR | L6: 2633 | M6: 825
K7: ABR | L7: 1646 | M7: 1078
K8: MAY | L8: 2801 | M8: 1393
K9: JUN | L9: 1925 | M9: 1569
K10: JUL | L10: 2081 | M10: 1227
K11: AGO | L11: 1908 | M11: 1062
K12: SET | L12: 1462 | M12: 986
K13: OCT | L13: 1270 | M13: 576
K14: NOV | L14: 2465 | M14: 398
K15: DIC | L15: 1750 | M15: 907
L16: =SUM(L4:L15) -> 26184 | M16: =SUM(M4:M15) -> 12661
A30: Fuente: Cuadros 13 y 16.

Sheet 17
A1: CUADRO 17
A2: COSTA RICA: CARTAS DE NATURALIZACIÓN ENTREGADAS POR MES, SEGÚN SEXO Y TIPO DE LEY
A3: AL 31 DE DICIEMBRE 2017
A5: Cartas entregadas | B5: Total | C5: Mes
C6: Enero | D6: Febrero | E6: Marzo | F6: Abril | G6: Mayo | H6: Junio | I6: Julio | J6: Agosto | K6: Setiembre | L6: Octubre | M6: Noviembre | N6: Diciembre
A8: Sexo | B8: =SUM(C8:N8) -> 5875 | C8: =SUM(C9:C10) -> 621 | D8: =SUM(D9:D10) -> 560 | E8: 840 | F8: 487 | G8: 453 | H8: 399 | I8: 380 | J8: 339 | K8: 370 | L8: 495 | M8: 542 | N8: 389
A9: Hombres | B9: =SUM(C9:N9) -> 2395 | C9: 250 | D9: 238 | E9: 350 | F9: 190 | G9: 192 | H9: 178 | I9: 147 | J9: 133 | K9: 141 | L9: 192 | M9: 232 | N9: 152
A10: Mujeres | B10: =SUM(C10:N10) -> 3480 | C10: 371 | D10: 322 | E10: 490 | F10: 297 | G10: 261 | H10: 221 | I10: 233 | J10: 206 | K10: 229 | L10: 303 | M10: 310 | N10: 237
A12: Tipo de ley | B12: =SUM(C12:N12) -> 5875 | C12: =SUM(C13:C16) -> 621 | D12: =SUM(D13:D16) -> 560 | E12: 840 | F12: 487 | G12: 453 | H12: 399 | I12: 380 | J12: 339 | K12: 370 | L12: 495 | M12: 542 | N12: 389
A13: Matrimonio | B13: =SUM(C13:N13) -> 3453 | C13: 460 | D13: 328 | E13: 407 | F13: 240 | G13: 293 | H13: 252 | I13: 201 | J13: 208 | K13: 270 | L13: 294 | M13: 276 | N13: 224
A14: 1155 | B14: =SUM(C14:N14) -> 1843 | C14: 90 | D14: 175 | E14: 341 | F14: 198 | G14: 119 | H14: 124 | I14: 133 | J14: 95 | K14: 72 | L14: 154 | M14: 218 | N14: 124
A15: Trascendencia | B15: =SUM(C15:N15) -> 393 | C15: 43 | D15: 35 | E15: 58 | F15: 36 | G15: 33 | H15: 14 | I15: 41 | J15: 25 | K15: 17 | L15: 26 | M15: 33 | N15: 32
A16: Otras | B16: =SUM(C16:N16) -> 186 | C16: 28 | D16: 22 | E16: 34 | F16: 13 | G16: 8 | H16: 9 | I16: 5 | J16: 11 | K16: 11 | L16: 21 | M16: 15 | N16: 9
A19: Fuente: Sección de Opciones y Naturalizaciones del Tribunal Supremo de Elecciones.

Sheet 18
A2: CUADRO 18
A3: COSTA RICA: CARTAS DE NATURALIZACIÓN ENTREGADAS, POR MES
A4: SEGÚN PAÍS DE ORIGEN, AL 31 DE DICIEMBRE 2017
A6: País de origen | B6: Total | C6: Enero | D6: Febrero | E6: Marzo | F6: Abril | G6: Mayo | H6: Junio | I6: Julio | J6: Agosto | K6: Setiembre | L6: Octubre | M6: Noviembre | N6: Diciembre
A8: Total | B8: =SUM(B10:B98) -> 5875 | C8: =SUM(C10:C98) -> 621 | D8: =SUM(D10:D98) -> 560 | E8: 840 | F8: 487 | G8: 453 | H8: 399 | I8: 380 | J8: =SUM(J10:J98) -> 339 | K8: 370 | L8: 495 | M8: 542 | N8: 389
A10: Alemania | B10: =SUM(C10:N10) -> 6 | C10: 0 | D10: 1 | E10: 2 | F10: 0 | G10: 0 | H10: 0 | I10: 0 | J10: 0 | K10: 0 | L10: 2 | M10: 1 | N10: 0
A11: Apátrida | B11: =SUM(C11:N11) -> 0 | C11: 0 | D11: 0 | E11: 0 | F11: 0 | G11: 0 | H11: 0 | I11: 0 | J11: 0 | K11: 0 | L11: 0 | M11: 0 | N11: 0
A12: Argelia | B12: 1 | C12: 0 | D12: 0 | E12: 0 | F12: 0 | G12: 0 | H12: 0 | I12: 0 | J12: 0 | K12: 1 | L12: 0 | M12: 0 | N12: 0
A13: Argentina | B13: 21 | C13: 0 | D13: 2 | E13: 3 | F13: 1 | G13: 1 | H13: 2 | I13: 0 | J13: 3 | K13: 1 | L13: 1 | M13: 3 | N13: 4
A14: Australia | B14: 1 | C14: 0 | D14: 0 | E14: 0 | F14: 0 | G14: 0 | H14: 1 | I14: 0 | J14: 0 | K14: 0 | L14: 0 | M14: 0 | N14: 0
A15: Austria | B15: 1 | C15: 0 | D15: 0 | E15: 0 | F15: 0 | G15: 1 | H15: 0 | I15: 0 | J15: 0 | K15: 0 | L15: 0 | M15: 0 | N15: 0
A16: Bélgica | B16: 5 | C16: 1 | D16: 1 | E16: 1 | F16: 0 | G16: 0 | H16: 0 | I16: 1 | J16: 0 | K16: 0 | L16: 1 | M16: 0 | N16: 0
A17: Belice | B17: 1 | C17: 0 | D17: 0 | E17: 0 | F17: 0 | G17: 0 | H17: 0 | I17: 0 | J17: 0 | K17: 0 | L17: 1 | M17: 0 | N17: 0
A18: Bielorrusia | B18: 1 | C18: 0 | D18: 1 | E18: 0 | F18: 0 | G18: 0 | H18: 0 | I18: 0 | J18: 0 | K18: 0 | L18: 0 | M18: 0 | N18: 0
A19: Bolivia | B19: 11 | C19: 0 | D19: 2 | E19: 0 | F19: 1 | G19: 0 | H19: 1 | I19: 2 | J19: 1 | K19: 1 | L19: 2 | M19: 1 | N19: 0
A20: Brasil | B20: 10 | C20: 0 | D20: 3 | E20: 4 | F20: 1 | G20: 0 | H20: 0 | I20: 1 | J20: 0 | K20: 0 | L20: 0 | M20: 1 | N20: 0
A21: Bulgaria | B21: 2 | C21: 1 | D21: 0 | E21: 1 | F21: 0 | G21: 0 | H21: 0 | I21: 0 | J21: 0 | K21: 0 | L21: 0 | M21: 0 | N21: 0
A22: Cabo Verde | B22: 0 | C22: 0 | D22: 0 | E22: 0 | F22: 0 | G22: 0 | H22: 0 | I22: 0 | J22: 0 | K22: 0 | L22: 0 | M22: 0 | N22: 0
A23: Canadá | B23: 16 | C23: 1 | D23: 2 | E23: 2 | F23: 2 | G23: 1 | H23: 1 | I23: 1 | J23: 3 | K23: 0 | L23: 1 | M23: 0 | N23: 2
A24: Checoslovaquia | B24: 0 | C24: 0 | D24: 0 | E24: 0 | F24: 0 | G24: 0 | H24: 0 | I24: 0 | J24: 0 | K24: 0 | L24: 0 | M24: 0 | N24: 0
A25: Chile | B25: 22 | C25: 1 | D25: 1 | E25: 3 | F25: 3 | G25: 0 | H25: 2 | I25: 2 | J25: 1 | K25: 0 | L25: 4 | M25: 3 | N25: 2
A26: China | B26: 87 | C26: 14 | D26: 10 | E26: 15 | F26: 9 | G26: 8 | H26: 6 | I26: 7 | J26: 3 | K26: 5 | L26: 4 | M26: 4 | N26: 2
A27: Colombia | B27: 658 | C27: 70 | D27: 73 | E27: 113 | F27: 56 | G27: 53 | H27: 44 | I27: 37 | J27: 39 | K27: 35 | L27: 46 | M27: 49 | N27: 43
A28: Corea | B28: 0 | C28: 0 | D28: 0 | E28: 0 | F28: 0 | G28: 0 | H28: 0 | I28: 0 | J28: 0 | K28: 0 | L28: 0 | M28: 0 | N28: 0
A29: Costa Rica | B29: 0 | C29: 0 | D29: 0 | E29: 0 | F29: 0 | G29: 0 | H29: 0 | I29: 0 | J29: 0 | K29: 0 | L29: 0 | M29: 0 | N29: 0
A30: Croacia | B30: 1 | C30: 0 | D30: 0 | E30: 0 | F30: 0 | G30: 0 | H30: 0 | I30: 1 | J30: 0 | K30: 0 | L30: 0 | M30: 0 | N30: 0
A31: Cuba | B31: 104 | C31: 10 | D31: 15 | E31: 11 | F31: 10 | G31: 7 | H31: 7 | I31: 8 | J31: 7 | K31: 5 | L31: 13 | M31: 5 | N31: 6
A32: Dinamarca | B32: 2 | C32: 1 | D32: 0 | E32: 0 | F32: 1 | G32: 0 | H32: 0 | I32: 0 | J32: 0 | K32: 0 | L32: 0 | M32: 0 | N32: 0
A33: Dominica | B33: 22 | C33: 0 | D33: 0 | E33: 22 | F33: 0 | G33: 0 | H33: 0 | I33: 0 | J33: 0 | K33: 0 | L33: 0 | M33: 0 | N33: 0
A34: Ecuador | B34: 35 | C34: 5 | D34: 1 | E34: 2 | F34: 4 | G34: 2 | H34: 3 | I34: 3 | J34: 3 | K34: 2 | L34: 2 | M34: 6 | N34: 2
A35: Egipto | B35: 2 | C35: 0 | D35: 0 | E35: 0 | F35: 1 | G35: 0 | H35: 0 | I35: 1 | J35: 0 | K35: 0 | L35: 0 | M35: 0 | N35: 0
A36: El Salvador | B36: 274 | C36: 28 | D36: 27 | E36: 40 | F36: 20 | G36: 25 | H36: 17 | I36: 9 | J36: 22 | K36: 21 | L36: 24 | M36: 22 | N36: 19
A37: Eslovia | B37: 0 | C37: 0 | D37: 0 | E37: 0 | F37: 0 | G37: 0 | H37: 0 | I37: 0 | J37: 0 | K37: 0 | L37: 0 | M37: 0 | N37: 0
A38: España | B38: 43 | C38: 3 | D38: 8 | E38: 3 | F38: 5 | G38: 5 | H38: 3 | I38: 2 | J38: 2 | K38: 3 | L38: 6 | M38: 1 | N38: 2
A39: Estados Unidos | B39: 153 | C39: 20 | D39: 16 | E39: 26 | F39: 13 | G39: 8 | H39: 11 | I39: 11 | J39: 9 | K39: 8 | L39: 7 | M39: 15 | N39: 9
A40: Filipinas | B40: 9 | C40: 1 | D40: 3 | E40: 1 | F40: 0 | G40: 0 | H40: 1 | I40: 1 | J40: 1 | K40: 1 | L40: 0 | M40: 0 | N40: 0
A41: Finlandia | B41: 0 | C41: 0 | D41: 0 | E41: 0 | F41: 0 | G41: 0 | H41: 0 | I41: 0 | J41: 0 | K41: 0 | L41: 0 | M41: 0 | N41: 0
A42: Francia | B42: 18 | C42: 2 | D42: 4 | E42: 3 | F42: 1 | G42: 1 | H42: 2 | I42: 0 | J42: 1 | K42: 0 | L42: 2 | M42: 1 | N42: 1
A43: Georgia | B43: 0 | C43: 0 | D43: 0 | E43: 0 | F43: 0 | G43: 0 | H43: 0 | I43: 0 | J43: 0 | K43: 0 | L43: 0 | M43: 0 | N43: 0
A44: Ghana | B44: 0 | C44: 0 | D44: 0 | E44: 0 | F44: 0 | G44: 0 | H44: 0 | I44: 0 | J44: 0 | K44: 0 | L44: 0 | M44: 0 | N44: 0
A45: Gran Bretaña | B45: 6 | C45: 2 | D45: 1 | E45: 1 | F45: 1 | G45: 0 | H45: 0 | I45: 1 | J45: 0 | K45: 0 | L45: 0 | M45: 0 | N45: 0
A46: Grecia | B46: 1 | C46: 0 | D46: 0 | E46: 0 | F46: 0 | G46: 0 | H46: 0 | I46: 0 | J46: 0 | K46: 0 | L46: 1 | M46: 0 | N46: 0
A47: Guatemala | B47: 32 | C47: 2 | D47: 0 | E47: 5 | F47: 3 | G47: 3 | H47: 3 | I47: 2 | J47: 1 | K47: 2 | L47: 5 | M47: 4 | N47: 2
A48: Guinea | B48: 0 | C48: 0 | D48: 0 | E48: 0 | F48: 0 | G48: 0 | H48: 0 | I48: 0 | J48: 0 | K48: 0 | L48: 0 | M48: 0 | N48: 0
A49: Guyana | B49: 1 | C49: 0 | D49: 0 | E49: 0 | F49: 0 | G49: 0 | H49: 0 | I49: 0 | J49: 0 | K49: 1 | L49: 0 | M49: 0 | N49: 0
A50: Haití | B50: 1 | C50: 0 | D50: 0 | E50: 0 | F50: 0 | G50: 0 | H50: 0 | I50: 0 | J50: 1 | K50: 0 | L50: 0 | M50: 0 | N50: 0
A51: Holanda | B51: 6 | C51: 0 | D51: 1 | E51: 0 | F51: 0 | G51: 2 | H51: 0 | I51: 0 | J51: 0 | K51: 1 | L51: 0 | M51: 0 | N51: 2
A52: Honduras | B52: 94 | C52: 13 | D52: 8 | E52: 12 | F52: 12 | G52: 4 | H52: 9 | I52: 5 | J52: 6 | K52: 5 | L52: 9 | M52: 6 | N52: 5
A53: Hong Kong | B53: 1 | C53: 0 | D53: 0 | E53: 0 | F53: 0 | G53: 0 | H53: 0 | I53: 0 | J53: 1 | K53: 0 | L53: 0 | M53: 0 | N53: 0
A54: Hungria | B54: 0 | C54: 0 | D54: 0 | E54: 0 | F54: 0 | G54: 0 | H54: 0 | I54: 0 | J54: 0 | K54: 0 | L54: 0 | M54: 0 | N54: 0
A55: India | B55: 1 | C55: 0 | D55: 0 | E55: 0 | F55: 0 | G55: 1 | H55: 0 | I55: 0 | J55: 0 | K55: 0 | L55: 0 | M55: 0 | N55: 0
A56: Inglaterra | B56: 3 | C56: 0 | D56: 0 | E56: 0 | F56: 0 | G56: 0 | H56: 0 | I56: 1 | J56: 0 | K56: 0 | L56: 1 | M56: 1 | N56: 0
A57: Irán | B57: 3 | C57: 0 | D57: 0 | E57: 1 | F57: 0 | G57: 0 | H57: 0 | I57: 1 | J57: 1 | K57: 0 | L57: 0 | M57: 0 | N57: 0
A58: Iraq | B58: 0 | C58: 0 | D58: 0 | E58: 0 | F58: 0 | G58: 0 | H58: 0 | I58: 0 | J58: 0 | K58: 0 | L58: 0 | M58: 0 | N58: 0
A59: Irlanda | B59: 1 | C59: 0 | D59: 0 | E59: 0 | F59: 0 | G59: 0 | H59: 0 | I59: 0 | J59: 0 | K59: 1 | L59: 0 | M59: 0 | N59: 0
A60: Israel | B60: 3 | C60: 0 | D60: 0 | E60: 0 | F60: 0 | G60: 0 | H60: 0 | I60: 1 | J60: 0 | K60: 2 | L60: 0 | M60: 0 | N60: 0
A61: Italia | B61: 32 | C61: 4 | D61: 6 | E61: 5 | F61: 3 | G61: 3 | H61: 4 | I61: 1 | J61: 1 | K61: 2 | L61: 1 | M61: 2 | N61: 0
A62: Jamaica | B62: 3 | C62: 1 | D62: 0 | E62: 0 | F62: 0 | G62: 0 | H62: 0 | I62: 0 | J62: 1 | K62: 0 | L62: 0 | M62: 0 | N62: 1
A63: Jordania | B63: 6 | C63: 0 | D63: 0 | E63: 4 | F63: 0 | G63: 0 | H63: 1 | I63: 1 | J63: 0 | K63: 0 | L63: 0 | M63: 0 | N63: 0
A64: Letonia | B64: 1 | C64: 1 | D64: 0 | E64: 0 | F64: 0 | G64: 0 | H64: 0 | I64: 0 | J64: 0 | K64: 0 | L64: 0 | M64: 0 | N64: 0
A65: Líbano | B65: 7 | C65: 0 | D65: 1 | E65: 1 | F65: 0 | G65: 0 | H65: 2 | I65: 0 | J65: 1 | K65: 0 | L65: 2 | M65: 0 | N65: 0
A66: Marruecos | B66: 1 | C66: 0 | D66: 0 | E66: 0 | F66: 0 | G66: 0 | H66: 0 | I66: 0 | J66: 0 | K66: 1 | L66: 0 | M66: 0 | N66: 0
A67: México | B67: 28 | C67: 4 | D67: 3 | E67: 2 | F67: 0 | G67: 4 | H67: 1 | I67: 1 | J67: 2 | K67: 3 | L67: 3 | M67: 2 | N67: 3
A68: Mongolia | B68: 0 | C68: 0 | D68: 0 | E68: 0 | F68: 0 | G68: 0 | H68: 0 | I68: 0 | J68: 0 | K68: 0 | L68: 0 | M68: 0 | N68: 0
A69: Nicaragua | B69: 3576 | C69: 355 | D69: 318 | E69: 491 | F69: 293 | G69: 283 | H69: 251 | I69: 243 | J69: 199 | K69: 232 | L69: 315 | M69: 349 | N69: 247
A70: Nigeria | B70: 7 | C70: 2 | D70: 1 | E70: 2 | F70: 0 | G70: 1 | H70: 0 | I70: 0 | J70: 0 | K70: 0 | L70: 0 | M70: 1 | N70: 0
A71: Nueva Zelanda | B71: 0 | C71: 0 | D71: 0 | E71: 0 | F71: 0 | G71: 0 | H71: 0 | I71: 0 | J71: 0 | K71: 0 | L71: 0 | M71: 0 | N71: 0
A72: Pakistán | B72: 0 | C72: 0 | D72: 0 | E72: 0 | F72: 0 | G72: 0 | H72: 0 | I72: 0 | J72: 0 | K72: 0 | L72: 0 | M72: 0 | N72: 0
A73: Palestina | B73: 0 | C73: 0 | D73: 0 | E73: 0 | F73: 0 | G73: 0 | H73: 0 | I73: 0 | J73: 0 | K73: 0 | L73: 0 | M73: 0 | N73: 0
A74: Panamá | B74: 86 | C74: 13 | D74: 10 | E74: 4 | F74: 8 | G74: 9 | H74: 1 | I74: 7 | J74: 5 | K74: 7 | L74: 3 | M74: 16 | N74: 3
A75: Paraguay | B75: =SUM(C75:N75) -> 2 | C75: 0 | D75: 0 | E75: 0 | F75: 0 | G75: 1 | H75: 0 | I75: 0 | J75: 0 | K75: 0 | L75: 0 | M75: 0 | N75: 1
A76: Perú | B76: 87 | C76: 19 | D76: 7 | E76: 14 | F76: 1 | G76: 0 | H76: 9 | I76: 7 | J76: 5 | K76: 5 | L76: 8 | M76: 7 | N76: 5
A77: Polonia | B77: 4 | C77: 0 | D77: 0 | E77: 1 | F77: 0 | G77: 1 | H77: 0 | I77: 0 | J77: 0 | K77: 0 | L77: 0 | M77: 1 | N77: 1
A78: Portugal | B78: 0 | C78: 0 | D78: 0 | E78: 0 | F78: 0 | G78: 0 | H78: 0 | I78: 0 | J78: 0 | K78: 0 | L78: 0 | M78: 0 | N78: 0
A79: Puerto Rico | B79: 3 | C79: 1 | D79: 0 | E79: 1 | F79: 0 | G79: 1 | H79: 0 | I79: 0 | J79: 0 | K79: 0 | L79: 0 | M79: 0 | N79: 0
A80: Reino Unido | B80: 0 | C80: 0 | D80: 0 | E80: 0 | F80: 0 | G80: 0 | H80: 0 | I80: 0 | J80: 0 | K80: 0 | L80: 0 | M80: 0 | N80: 0
A81: República Dominicana | B81: 113 | C81: 23 | D81: 15 | E81: 0 | F81: 10 | G81: 12 | H81: 8 | I81: 11 | J81: 3 | K81: 10 | L81: 5 | M81: 13 | N81: 3
A82: Rumanía | B82: 3 | C82: 1 | D82: 0 | E82: 1 | F82: 0 | G82: 0 | H82: 0 | I82: 0 | J82: 0 | K82: 1 | L82: 0 | M82: 0 | N82: 0
A83: Rusia | B83: 7 | C83: 2 | D83: 0 | E83: 1 | F83: 2 | G83: 1 | H83: 1 | I83: 0 | J83: 0 | K83: 0 | L83: 0 | M83: 0 | N83: 0
A84: Siria | B84: 1 | C84: 1 | D84: 0 | E84: 0 | F84: 0 | G84: 0 | H84: 0 | I84: 0 | J84: 0 | K84: 0 | L84: 0 | M84: 0 | N84: 0
A85: Sri Lanka | B85: 0 | C85: 0 | D85: 0 | E85: 0 | F85: 0 | G85: 0 | H85: 0 | I85: 0 | J85: 0 | K85: 0 | L85: 0 | M85: 0 | N85: 0
A86: Sudáfrica | B86: 2 | C86: 0 | D86: 1 | E86: 0 | F86: 0 | G86: 0 | H86: 0 | I86: 0 | J86: 0 | K86: 0 | L86: 0 | M86: 1 | N86: 0
A87: Sudan | B87: 0 | C87: 0 | D87: 0 | E87: 0 | F87: 0 | G87: 0 | H87: 0 | I87: 0 | J87: 0 | K87: 0 | L87: 0 | M87: 0 | N87: 0
A88: Suecia | B88: 0 | C88: 0 | D88: 0 | E88: 0 | F88: 0 | G88: 0 | H88: 0 | I88: 0 | J88: 0 | K88: 0 | L88: 0 | M88: 0 | N88: 0
A89: Suiza | B89: 10 | C89: 1 | D89: 2 | E89: 0 | F89: 0 | G89: 2 | H89: 1 | I89: 0 | J89: 1 | K89: 0 | L89: 0 | M89: 1 | N89: 2
A90: Tailandia | B90: 0 | C90: 0 | D90: 0 | E90: 0 | F90: 0 | G90: 0 | H90: 0 | I90: 0 | J90: 0 | K90: 0 | L90: 0 | M90: 0 | N90: 0
A91: Taiwán | B91: 20 | C91: 2 | D91: 3 | E91: 5 | F91: 0 | G91: 3 | H91: 0 | I91: 1 | J91: 0 | K91: 0 | L91: 2 | M91: 3 | N91: 1
A92: Trinidad y Tobago | B92: 2 | C92: 1 | D92: 0 | E92: 0 | F92: 0 | G92: 0 | H92: 0 | I92: 0 | J92: 0 | K92: 1 | L92: 0 | M92: 0 | N92: 0
A93: Turquía | B93: 2 | C93: 0 | D93: 0 | E93: 0 | F93: 1 | G93: 0 | H93: 0 | I93: 0 | J93: 0 | K93: 1 | L93: 0 | M93: 0 | N93: 0
A94: Ucrania | B94: 7 | C94: 1 | D94: 0 | E94: 0 | F94: 2 | G94: 0 | H94: 0 | I94: 0 | J94: 0 | K94: 0 | L94: 1 | M94: 3 | N94: 0
A95: Uruguay | B95: 13 | C95: 1 | D95: 0 | E95: 2 | F95: 2 | G95: 1 | H95: 1 | I95: 0 | J95: 3 | K95: 1 | L95: 0 | M95: 2 | N95: 0
A96: Yemen | B96: 0 | C96: 0 | D96: 0 | E96: 0 | F96: 0 | G96: 0 | H96: 0 | I96: 0 | J96: 0 | L96: 0 | M96: 0 | N96: 0
A97: Venezuela | B97: 191 | C97: 13 | D97: 12 | E97: 34 | F97: 21 | G97: 9 | H97: 6 | I97: 10 | J97: 13 | K97: 11 | L97: 23 | M97: 18 | N97: 21
A98: Vietnam | B98: 2 | C98: 0 | D98: 1 | E98: 1 | F98: 0 | G98: 0 | H98: 0 | I98: 0 | J98: 0 | K98: 0 | L98: 0 | M98: 0 | N98: 0
A101: FUENTE: Sección de Opciones y Naturalizaciones del Tribunal Supremo de Elecciones.

Sheet 19
A1: CUADRO 19
A2: COSTA RICA: TARJETAS DE IDENTIDAD DE MENORES IMPRESAS
A3: POR PROVINCIA, SEGÚN MES, AL 31 DE DICIEMBRE 2017
A5: Mes | B5: Total | C5: Provincia
C6: San José | D6: Alajuela | E6: Cartago | F6: Heredia | G6: Guanacaste | H6: Puntarenas | I6: Limón
A8: Total | B8: =SUM(C8:I8) -> 145092 | C8: =SUM(C10:C21) -> 47127 | D8: =SUM(D10:D21) -> 29103 | E8: 12581 | F8: 12394 | G8: 11287 | H8: 14994 | I8: 17606
A10: Enero | B10: =SUM(C10:I10) -> 16743 | C10: 5539 | D10: 3334 | E10: 1325 | F10: 1352 | G10: 1332 | H10: 1751 | I10: 2110
A11: Febrero | B11: =SUM(C11:I11) -> 14945 | C11: 4250 | D11: 3041 | E11: 1011 | F11: 1233 | G11: 1361 | H11: 1704 | I11: 2345
A12: Marzo | B12: 9680 | C12: 3004 | D12: 1941 | E12: 918 | F12: 783 | G12: 812 | H12: 1120 | I12: 1102
A13: Abril | B13: 7084 | C13: 2305 | D13: 1457 | E13: 627 | F13: 575 | G13: 554 | H13: 750 | I13: 816
A14: Mayo | B14: 9345 | C14: 3134 | D14: 1736 | E14: 972 | F14: 688 | G14: 723 | H14: 965 | I14: 1127
A15: Junio | B15: 9530 | C15: 3037 | D15: 2005 | E15: 970 | F15: 808 | G15: 688 | H15: 925 | I15: 1097
A16: Julio | B16: 12691 | C16: 4676 | D16: 2344 | E16: 1236 | F16: 1178 | G16: 909 | H16: 1052 | I16: 1296
A17: Agosto | B17: 10437 | C17: 3542 | D17: 2212 | E17: 881 | F17: 982 | G17: 683 | H17: 1029 | I17: 1108
A18: Setiembre | B18: 11546 | C18: 3864 | D18: 2340 | E18: 1052 | F18: 1138 | G18: 811 | H18: 1081 | I18: 1260
A19: Octubre | B19: 14210 | C19: 4718 | D19: 3004 | E19: 1385 | F19: 1234 | G19: 879 | H19: 1301 | I19: 1689
A20: Noviembre | B20: 15632 | C20: 5087 | D20: 3094 | E20: 1235 | F20: 1461 | G20: 1266 | H20: 1615 | I20: 1874
A21: Diciembre | B21: 13249 | C21: 3971 | D21: 2595 | E21: 969 | F21: 962 | G21: 1269 | H21: 1701 | I21: 1782
A24: Fuente: Departamento Civil y Coordinación de Servicios Regionales del Tribunal Supremo de Elecciones.

Sheet 20
A1: CUADRO 20
A2: COSTA RICA: CERTIFICACIONES SOLICITADAS VÍA
A3: INTERNET, POR TIPO DE SOLICITUD, SEGÚN MES
A4: AL 31 DE DICIEMBRE 2017
A6: Mes | B6: Total | C6: Tipo de solicitud
C7: Nacimiento | D7: Matrimonio | E7: Defunción | F7: No aparece matrimonio
A9: Total | B9: =SUM(C9:F9) -> 65711 | C9: =SUM(C11:C22) -> 39022 | D9: =SUM(D11:D22) -> 10213 | E9: =SUM(E11:E22) -> 7877 | F9: =SUM(F11:F22) -> 8599
A11: Enero | B11: =SUM(C11:F11) -> 6795 | C11: 4189 | D11: 1114 | E11: 690 | F11: 802
A12: Febrero | B12: =SUM(C12:F12) -> 6673 | C12: 4162 | D12: 1124 | E12: 656 | F12: 731
A13: Marzo | B13: 6035 | C13: 3493 | D13: 1049 | E13: 701 | F13: 792
A14: Abril | B14: 1900 | C14: 337 | D14: 217 | E14: 270 | F14: 1076
A15: Mayo | B15: 5551 | C15: 3116 | D15: 995 | E15: 782 | F15: 658
A16: Junio | B16: 5570 | C16: 3291 | D16: 857 | E16: 600 | F16: 822
A17: Julio | B17: 5508 | C17: 3269 | D17: 857 | E17: 560 | F17: 822
A18: Agosto | B18: 6375 | C18: 3967 | D18: 1020 | E18: 789 | F18: 599
A19: Setiembre | B19: 5381 | C19: 2933 | D19: 875 | E19: 994 | F19: 579
A20: Octubre | B20: 5505 | C20: 3305 | D20: 792 | E20: 731 | F20: 677
A21: Noviembre | B21: 6252 | C21: 4147 | D21: 782 | E21: 724 | F21: 599
A22: Diciembre | B22: 4166 | C22: 2813 | D22: 531 | E22: 380 | F22: 442
A25: Fuente: Departamento Civil del Tribunal Supremo de Elecciones.

Sheet 21
A1: CUADRO 21
A2: COSTA RICA: INGRESO DE SOLICITUDES DE DETERMINACIÓN DE PATERNIDAD
A3: POR PROVINCIA, SEGÚN MES, AL 31 DE DICIEMBRE 2017
A5: Mes | B5: Total | C5: San José | D5: Alajuela | E5: Cartago | F5: Heredia | G5: Guanacaste | H5: Puntarenas | I5: Limón | J5: Partido Especial | K5: Casos especiales
A7: Total | B7: =SUM(B9:B20) -> 3815 | C7: =SUM(C9:C20) -> 1379 | D7: =SUM(D9:D20) -> 708 | E7: 268 | F7: 174 | G7: 327 | H7: 360 | I7: 539 | J7: =SUM(J9:J20) -> 10 | K7: =SUM(K9:K20) -> 50
A9: Enero | B9: =SUM(C9:K9) -> 408 | C9: 136 | D9: 78 | E9: 39 | F9: 23 | G9: 37 | H9: 40 | I9: 55 | J9: 0 | K9: 0
A10: Febrero | B10: 576 | C10: 159 | D10: 103 | E10: 48 | F10: 31 | G10: 68 | H10: 52 | I10: 109 | J10: 0 | K10: 6
A11: Marzo | B11: 355 | C11: 121 | D11: 50 | E11: 17 | F11: 16 | G11: 35 | H11: 44 | I11: 46 | J11: 0 | K11: 26
A12: Abril | B12: 145 | C12: 76 | D12: 24 | E12: 11 | F12: 5 | G12: 6 | H12: 8 | I12: 9 | J12: 2 | K12: 4
A13: Mayo | B13: 343 | C13: 146 | D13: 57 | E13: 18 | F13: 9 | G13: 26 | H13: 20 | I13: 64 | J13: 0 | K13: 3
A14: Junio | B14: 346 | C14: 145 | D14: 58 | E14: 30 | F14: 20 | G14: 23 | H14: 34 | I14: 31 | J14: 0 | K14: 5
A15: Julio | B15: 243 | C15: 112 | D15: 43 | E15: 5 | F15: 9 | G15: 17 | H15: 21 | I15: 34 | J15: 0 | K15: 2
A16: Agosto | B16: 308 | C16: 118 | D16: 57 | E16: 21 | F16: 9 | G16: 28 | H16: 33 | I16: 41 | J16: 1 | K16: 0
A17: Setiembre | B17: 242 | C17: 87 | D17: 43 | E17: 18 | F17: 14 | G17: 16 | H17: 23 | I17: 36 | J17: 1 | K17: 4
A18: Octubre | B18: 93 | C18: 37 | D18: 16 | E18: 4 | F18: 4 | G18: 9 | H18: 8 | I18: 15 | J18: 0 | K18: 0
A19: Noviembre | B19: 376 | C19: 123 | D19: 109 | E19: 28 | F19: 11 | G19: 25 | H19: 32 | I19: 43 | J19: 5 | K19: 0
A20: Diciembre | B20: 380 | C20: 119 | D20: 70 | E20: 29 | F20: 23 | G20: 37 | H20: 45 | I20: 56 | J20: 1 | K20: 0
A23: Fuente: Sección de Inscripciones del Tribunal Supremo de Elecciones.

Sheet 22
A2: CUADRO 22
A3: COSTA RICA: INGRESO DE SOLICITUDES DE DETERMINACIÓN DE PATERNIDAD, POR MES
A4: SEGÚN NACIONALIDAD DE LOS PADRES, AL 31 DE MARZO 2017
A6: NACIONALIDAD | B6: TOTAL | C6: Enero | D6: Febrero | E6: Marzo | F6: Abril | G6: Mayo | H6: Junio | I6: Julio | J6: Agosto | K6: Setiembre | L6: Octubre | M6: Noviembre | N6: Diciembre
A8: TOTAL | B8: =B11+B15+B19+B23+B27+B31 -> 3815 | C8: 408 | D8: 576 | E8: 355 | F8: 145 | G8: 343 | H8: 346 | I8: 243 | J8: 308 | K8: 242 | L8: 93 | M8: 376 | N8: =N11+N15+N19+N23+N27+N31 -> 380
A10: Costa Rica
A11: Presunto padre | B11: =SUM(C11:N11) -> 3419 | C11: 363 | D11: 519 | E11: 308 | F11: 139 | G11: 299 | H11: 312 | I11: 222 | J11: 290 | K11: 218 | L11: 55 | M11: 341 | N11: 353
A12: Madre | B12: =SUM(C12:N12) -> 3427 | C12: 368 | D12: 527 | E12: 321 | F12: 132 | G12: 299 | H12: 313 | I12: 227 | J12: 283 | K12: 221 | L12: 72 | M12: 295 | N12: 369
A14: Nicaragua
A15: Presunto padre | B15: =SUM(C15:N15) -> 341 | C15: 40 | D15: 54 | E15: 29 | F15: 6 | G15: 41 | H15: 27 | I15: 16 | J15: 14 | K15: 20 | L15: 35 | M15: 34 | N15: 25
A16: Madre | B16: =SUM(C16:N16) -> 332 | C16: 40 | D16: 46 | E16: 28 | F16: 11 | G16: 43 | H16: 29 | I16: 14 | J16: 25 | K16: 18 | L16: 21 | M16: 46 | N16: 11
A18: Colombia
A19: Presunto padre | B19: =SUM(C19:N19) -> 13 | C19: 1 | D19: 0 | E19: 0 | F19: 0 | G19: 0 | H19: 5 | I19: 2 | J19: 2 | K19: 3 | L19: 0 | M19: 0 | N19: 0
A20: Madre | B20: =SUM(C20:N20) -> 6 | C20: 0 | D20: 1 | E20: 3 | F20: 0 | G20: 0 | H20: 1 | I20: 0 | J20: 0 | K20: 1 | L20: 0 | M20: 0 | N20: 0
A22: Panamá
A23: Presunto padre | B23: =SUM(C23:N23) -> 3 | C23: 0 | D23: 0 | E23: 0 | F23: 0 | G23: 1 | H23: 0 | I23: 1 | J23: 0 | K23: 0 | L23: 0 | M23: 0 | N23: 1
A24: Madre | B24: =SUM(C24:N24) -> 4 | C24: 0 | D24: 0 | E24: 1 | F24: 0 | G24: 0 | H24: 1 | I24: 2 | J24: 0 | K24: 0 | L24: 0 | M24: 0 | N24: 0
E25: 0
A26: Otros
A27: Presunto padre | B27: =SUM(C27:N27) -> 28 | C27: 3 | D27: 2 | E27: =1+2+2+10+2+1 -> 18 | F27: 0 | G27: =1+1 -> 2 | H27: =2 -> 2 | I27: 0 | J27: 0 | K27: =0+1 -> 1 | L27: 0 | M27: 0 | N27: 0
A28: Madre | B28: =SUM(C28:N28) -> 9 | C28: 0 | D28: 1 | E28: =0+1+1 -> 2 | F28: 1 | G28: =0+1 -> 1 | H28: =1+1 -> 2 | I28: 0 | J28: 0 | K28: =1+1 -> 2 | L28: 0 | M28: 0 | N28: 0
A30: No Indica
A31: Presunto padre | B31: =SUM(C31:N31) -> 11 | C31: 1 | D31: 1 | E31: 0 | F31: 0 | G31: 0 | H31: 0 | I31: 2 | J31: 2 | K31: 0 | L31: 3 | M31: 1 | N31: 1
A32: Madre | B32: =SUM(C32:N32) -> 37 | C32: 0 | D32: 1 | E32: 0 | F32: 1 | G32: 0 | H32: 0 | I32: 0 | J32: 0 | K32: 0 | L32: 0 | M32: 35 | N32: 0
A35: Fuente: Sección de Inscripciones del Tribunal Supremo de Elecciones.

Sheet 23
A1: CUADRO 23
A2: COSTA RICA: RESULTADO DE PRUEBAS DE ADN PARA
A3: DETERMINAR LA PATERNIDAD, SEGÚN MES
A4: AL 31 DE DICIEMBRE 2017
A6: Mes | B6: Total | D6: Absoluto | I6: Porcentaje
D7: Positivo | F7: Negativo | I7: Positivo | K7: Negativo
A9: Total | B9: =SUM(B11:B22) -> 2975 | D9: =SUM(D11:D22) -> 2242 | E9: =SUM(E11:E22) -> 0 | F9: =SUM(F11:F22) -> 733 | I9: =+D9/B9*100 -> 75.36134454 | K9: =+F9/B9*100 -> 24.63865546
A11: Enero | B11: =SUM(D11:F11) -> 128 | D11: 111 | F11: 17 | I11: =+D11/B11*100 -> 86.71875 | K11: =+F11/B11*100 -> 13.28125
A12: Febrero | B12: =SUM(D12:F12) -> 343 | D12: 264 | F12: 79 | I12: =+D12/B12*100 -> 76.96793003 | K12: =+F12/B12*100 -> 23.03206997
A13: Marzo | B13: 337 | D13: 259 | F13: 78 | I13: 76.85459941 | K13: 23.14540059
A14: Abril | B14: 190 | D14: 153 | F14: 37 | I14: 80.52631579 | K14: 19.47368421
A15: Mayo | B15: 313 | D15: 195 | F15: 118 | I15: 62.30031949 | K15: 37.69968051
A16: Junio | B16: 280 | D16: 194 | F16: 86 | I16: 69.28571429 | K16: 30.71428571
A17: Julio | B17: 364 | D17: 252 | F17: 112 | I17: 69.23076923 | K17: 30.76923077
A18: Agosto | B18: 299 | D18: 250 | F18: 49 | I18: 83.61204013 | K18: 16.38795987
A19: Setiembre | B19: 133 | D19: 114 | F19: 19 | I19: 85.71428571 | K19: 14.28571429
A20: Octubre | B20: =SUM(D20:F20) -> 189 | D20: 141 | F20: 48 | I20: =+D20/B20*100 -> 74.6031746 | K20: =+F20/B20*100 -> 25.3968254
A21: Noviembre | B21: =SUM(D21:F21) -> 136 | D21: 118 | F21: 18 | I21: =+D21/B21*100 -> 86.76470588 | K21: =+F21/B21*100 -> 13.23529412
A22: Diciembre | B22: =SUM(D22:F22) -> 263 | D22: 191 | F22: 72 | I22: =+D22/B22*100 -> 72.62357414 | K22: =+F22/B22*100 -> 27.37642586
A25: Fuente: Sección de Inscripciones del Tribunal Supremo de Elecciones.

Sheet 24
A1: CUADRO 24
A2: COSTA RICA: CANTIDAD DE RESOLUCIONES, POR TIPO DE RESOLUCIÓN, SEGÚN MES
A3: AL 31 DE DICIEMBRE 2017
A5: Mes | B5: Total | C5: Tipo de resolución
C6: Electorales | D6: Inscripciones | E6: Municipales | F6: Naturalizaciones | G6: Ocursos, Paternidad y Otros | H6: Procedimientos Administrativos
A8: Total | B8: =SUM(C8:H8) -> 8095 | C8: =SUM(C10:C21) -> 443 | D8: 1044 | E8: 145 | F8: 6077 | G8: 67 | H8: 319
A10: Enero | B10: =SUM(C10:H10) -> 961 | C10: 33 | D10: 83 | E10: 18 | F10: 814 | G10: =2+0+0 -> 2 | H10: 11
A11: Febrero | B11: =SUM(C11:H11) -> 659 | C11: 40 | D11: 66 | E11: 10 | F11: 515 | G11: =9+6+0 -> 15 | H11: 13
A12: Marzo | B12: 648 | C12: 63 | D12: 89 | E12: 21 | F12: 415 | G12: =3+2+0 -> 5 | H12: 55
A13: Abril | B13: 417 | C13: 24 | D13: 53 | E13: 5 | F13: 280 | G13: =2+0 -> 2 | H13: 53
A14: Mayo | B14: 768 | C14: 36 | D14: 89 | E14: 9 | F14: 606 | G14: =0+2 -> 2 | H14: 26
A15: Junio | B15: 735 | C15: 53 | D15: 194 | E15: 10 | F15: 443 | G15: =4+0 -> 4 | H15: 31
A16: Julio | B16: 546 | C16: 42 | D16: 72 | E16: 20 | F16: 383 | G16: 2 | H16: 27
A17: Agosto | B17: 863 | C17: 30 | D17: 73 | E17: 8 | F17: 735 | G17: 8 | H17: 9
A18: Setiembre | B18: 462 | C18: 33 | D18: 97 | E18: 8 | F18: 302 | G18: 9 | H18: 13
A19: Octubre | B19: 731 | C19: 42 | D19: 101 | E19: 17 | F19: 537 | G19: 3 | H19: 31
A20: Noviembre | B20: 816 | C20: 20 | D20: 69 | E20: 12 | F20: 680 | G20: 7 | H20: 28
A21: Diciembre | B21: 489 | C21: 27 | D21: 58 | E21: 7 | F21: 367 | G21: 8 | H21: 22
A24: Fuente: Secretaría del Tribunal Supremo de Elecciones.

Sheet 25
A2: CUADRO 25
A3: COSTA RICA: DONACIONES EN EFECTIVO REPORTADAS ANTE EL TRIBUNAL SUPREMO DE ELECCIONES
A4: SEGÚN PARTIDO POLÍTICO 1/
A5: - Cifras en colones, al 31 de diciembre de 2017 -
A6: PARTIDO POLÍTICO | B6: CICLO MUNICIPAL2/ | C6: CICLO PRESIDENCIAL | D6: CICLO PRESIDENCIAL | E6: DICIEMBRE, 2017
C7: PERIODO NO ELECTORAL 2016-2017 3/ | D7: PERIODO ELECTORAL 2016-2017 4/
A9: TOTAL | B9: =SUM(B11:B56) -> 1389292327 | C9: =SUM(C11:C56) -> 2415001201 | D9: =SUM(D11:D56) -> 241874380.5 | E9: =SUM(E11:E56) -> 154979711.9
A11: ACCESIBILIDAD SIN EXCLUSION | B11: 2284361.06 | C11: 76627828.7 | D11: 1963325.29 | E11: 652936
A12: ACCION CIUDADANA | B12: 231351929.6 | C12: 96010116.22 | D12: 13115767.79 | E12: 2440994.64
A13: ACUERDO DE ALIANZA DE QUEPOS | B13: 660000 | C13: 0 | D13: 0 | E13: 0
A14: ACTUEMOS YA | B14: 0 | C14: 1070000 | D14: 10000 | E14: 0
A15: ALIANZA DEMOCRATA CRISTIANA | B15: 8586284 | C15: 8455500 | D15: 3563400 | E15: 2905000
A16: ALIANZA PATRIOTICA | B16: 2000000 | C16: 270000 | D16: 0 | E16: 0
A17: ALIANZA POR SAN JOSE | B17: 77616500 | C17: 8491939.23 | D17: 0 | E17: 0
A18: ALIANZA SOCIAL POR LA UNION | B18: 3555751 | C18: 101000 | D18: 0 | E18: 0
A19: AUTENTICO LIMONENSE | B19: 11454550.17 | C19: 2716000 | D19: 850003.6 | E19: 0
A20: AUTENTICO SIQUIRREÑO | B20: 0 | C20: 625000 | D20: 0 | E20: 0
A21: AVANCE MONTES DE OCA | B21: 3663422 | C21: 2200185 | D21: 27000 | E21: 20000
A22: BARVA UNIDA | B22: 307000 | C22: 0 | D22: 0 | E22: 0
A23: COALICION ALIANZA POR BELEN | B23: 694500 | C23: 0 | D23: 0 | E23: 0
A24: COALICION GENTE MONTES DE OCA | B24: 7065573 | C24: 0 | D24: 0 | E24: 0
A25: COALICION UNIDOS POR GUATUSO | B25: 356000 | C25: 0 | D25: 0 | E25: 0
A26: CURRIDABAT SIGLO XXI | B26: 18315116 | C26: 4625297.65 | D26: 502907 | E26: 238571
A27: DE LOS TRANSPORTISTAS | B27: 0 | C27: 0 | D27: 810000 | E27: 590000
A28: DEL SOL | B28: 17046150 | C28: 0 | D28: 0 | E28: 0
A29: DEMOCRATA | B29: 109219 | C29: 0 | D29: 0 | E29: 0
A30: ECOLOGICO COMUNAL COSTARRICENSE | B30: 0 | C30: 1391647 | D30: 0 | E30: 0
A31: FRENTE AMPLIO | B31: 180761940 | C31: 113745898.3 | D31: 17849957.56 | E31: 6046493
A32: FUERZA DEMOCRATICA DESAMPARADEÑA | B32: 1006720 | C32: 0 | D32: 0 | E32: 0
A33: GARABITO ECOLOGICO | B33: 3558320 | C33: 0 | D33: 0 | E33: 0
A34: HUMANISTA DE MONTES DE OCA | B34: 0 | C34: 100000 | D34: 0 | E34: 0
A35: INDEPENDIENTE ESCAZUCEÑO | B35: 1711000 | C35: 0 | D35: 0 | E35: 0
A36: INTEGRACION NACIONAL | B36: 11761500 | C36: 0 | D36: 6298140.41 | E36: 3815140.41
A37: LIBERACION NACIONAL | B37: 502505486.7 | C37: 1849471239 | D37: 150848479.8 | E37: 116490678.6
A38: LIBERAL PROGRESISTA | B38: 0 | C38: 21000 | D38: 1291350 | E38: 295050
A39: MOVIMIENTO AVANCE SANTO DOMINGO | B39: 4988438.52 | C39: 2729000 | D39: 165000 | E39: 0
A40: MOVIMIENTO LIBERTARIO | B40: 61145715.93 | C40: 34906014.35 | D40: 11388042.3 | E40: 4981963.98
A41: NUEVA GENERACION | B41: 38274824 | C41: 17605244.9 | D41: 9589398.6 | E41: 5563274.8
A42: NUEVO PARTIDO SOCIALISTA | B42: 350000 | C42: 0 | D42: 0 | E42: 0
A43: PARRITA INDEPENDIENTE | B43: 670000 | C43: 0 | D43: 0 | E43: 0
A44: PROGRESO COMUNAL DESAMPARADEÑO | B44: 601001.01 | D44: 0 | E44: 0
A45: RECUPERANDO VALORES | B45: 0 | C45: 360000 | D45: 0 | E45: 0
A46: RENOVACION CARTAGO | B46: 668883.99 | C46: 700000 | D46: 0 | E46: 0
A47: RENOVACION COSTARRICENSE | B47: 10431844.02 | C47: 15056707 | D47: 3423744.84 | E47: 1653000
A48: RENOVEMOS ALAJUELA | B48: 2710000 | C48: 5692181 | D48: 260000 | E48: 80000
A49: REPUBLICANO SOCIAL CRISTIANO | B49: 73666912.39 | C49: 25297400 | D49: 0 | E49: 0
A50: RESCATE CANTONAL LA UNION | B50: 5193886 | C50: 0 | D50: 0 | E50: 0
A51: RESTAURACION NACIONAL | B51: 10946000 | C51: 562000 | D51: 840000 | E51: 381000
A52: TODO POR FLORES | B52: 2033000 | C52: 400000 | D52: 0 | E52: 0
A53: TODOS | B53: 0 | C53: 0 | D53: 1625000 | E53: 0
A54: UNIDAD SOCIAL CRISTIANA | B54: 68485598.94 | C54: 145770002.5 | D54: 12476863.34 | E54: 7259609.44
A55: VAMOS | B55: 0 | C55: 0 | D55: 4976000 | E55: 1566000
A56: YUNTA PROGRESISTA ESCAZUCEÑA | B56: 22754900 | C56: 0 | D56: 0 | E56: 0
A58: Notas:
A59: 1/ El detalle de cada contribuyente se puede consultar en http://www.tse.go.cr/contribuciones_partidos.htm
A60: 2/ El Ciclo Municipal abarca el periodo comprendido entre el 20 de marzo de 2014 y el 23 de marzo de 2016.
A61: 3/ El Periodo no Electoral del Ciclo Presidencia comprende del 24 de marzo de 2016 al 03 de octubre de 2017.
A62: 4/ El Periodo Electoral del Ciclo Presidencia comprende del 04 de octubre de 2017 al 21 de marzo de 2018.
A64: Fuente: Reportes de contribuciones remitidos periódicamente por los partidos políticos al Departamento de Financiamiento de Partidos Políticos.
